Workbook

Sheet Sheet1
F2: Fibox Thermal Calculator Version: X20 - Date: 27/6/2014
B3: INPUT
A5: 1. Product selection | C5: Product family | D5: ARCA
C6: Size | D6: =data!$C$4 -> ARCA 500x400x210 | I6: =AREA -> 0.6666
C7: Direction | D7: Vertical
I8: =ROUNDDOWN(data!$E$2*data!$D$7*200,-1) -> 430
A9: 2. Installation | C9: Installation | D9: Pole mounting
C11: Inner door | D11: None
C12: =CONCATENATE("Empty Cabinet Max Power * = ",ROUND(data!$G$42,0)," Watt") -> Empty Cabinet Max Power * = 77 Watt
A13: 3. Environment | C13: Indoor / Outdoor | D13: Indoor
C14: Location | D14: Europe
C15: -Only when exposed to direct sunlight
C16: Ambient temperature | E16: 35 | F16: ℃
C17: Max. = 80℃ Min. = -40℃ | E17: 5 | F17: ℃
C18: Cabinet temperature | E18: 70 | F18: ℃
C19: Max. = 120℃ Min. = -40℃ | E19: 0 | F19: ℃
C20: =CONCATENATE("Power from solar radiation (peak) = ",data!$O$42," Watt") -> Power from solar radiation (peak) = - Watt
A21: 4. Components | C21: Power dissipation | E21: 0 | F21: Watt
C22: =CONCATENATE("Max. = ",$I$8,CHAR(10),"Min. = 0") -> Max. = 430 Min. = 0
B24: OUTPUT
A26: Without cooling | C26: Estimated Ti max | D26: 35 | E26: ℃
C27: Allowed Ti max | D27: 70 | E27: ℃ | G27: 77 Watt left to Estimated Pd max
C29: No External Cooling required.
A31: Recommendations | C31: Cooling solution | E31: Specification
C36: Heating solution | E36: Specification
C39: Condensation prevention | E39: Specification
C40: Ventilation plug | H40: None
C42: Note & assumptions: | D42: 1. Heater's safety factor is 2
D43: 2. Air flow's safety factor is 1.25
D44: 3. Heat exchanger's safety factor is 1.25
D45: 4. Cabinet material PC's solar absorptance is 0.44
D46: *5. According to IEC standards, the estimated Max Power is based on Ta max 35℃ and Ti max 70℃

Sheet data
A1: Size | B1: Direction | C1: Inner | D1: Installation | E1: Final K | G1: without inner door | N1: with inner door | U1: CAB PN | AC1: CAB PX | AO1: CAB P | AV1: CAB SL | DG1: TBSL | EE1: SLN | EO1: ARCA JIG (US) | EY1: CAB PC/ABS | FI1: QUICK | FQ1: EK | GF1: SOLID PC/ABS | GS1: SM | GY1: STCP/STC
A2: =VLOOKUP($A$4,$B$60:$C$73,2,FALSE) -> 500x400x210 | B2: =Sheet1!$D$7 -> Vertical | C2: =Sheet1!$D$11 -> None | D2: =LEN(Sheet1!$D$9)*10000+LEN(Sheet1!$D$7)*100+LEN($C$59) -> 140806 | E2: =VLOOKUP($D$2,$A$7:$HM$34,IF($A$4="ARCA",MATCH($C$4,$G$2:$M$2,0)+IF($C$2="Yes",13,6),MATCH($C$4,$U$2:$HM$2,0)+20),FALSE) -> 3.3 | G2: ARCA 300x200x150 | H2: ARCA 400x300x150 | I2: ARCA 400x300x210 | J2: ARCA 500x400x210 | K2: ARCA 600x400x210 | L2: ARCA 700x500x300 | M2: ARCA 800x600x300 | N2: ARCA 300x200x150 | O2: ARCA 400x300x150 | P2: ARCA 400x300x210 | Q2: ARCA 500x400x210 | R2: ARCA 600x400x210 | S2: ARCA 700x500x300 | T2: ARCA 800x600x300 | U2: CAB PN 300x250x140 | V2: CAB PN 400x300x200 | W2: CAB PN 400x400x200 | X2: CAB PN 500x400x200 | Y2: CAB PN 600x400x230 | Z2: CAB PN 600x500x230 | AA2: CAB PN 800x300x230 | AB2: CAB PN 800x600x300 | AC2: CAB PX 500x500x320 | AD2: CAB PX 500x750x320 | AE2: CAB PX 750x500x320 | AF2: CAB PX 750x750x320 | AG2: CAB PX 750x1000x320 | AH2: CAB PX 750x1250x320 | AI2: CAB PX 1000x500x320 | AJ2: CAB PX 1000x750x320 | AK2: CAB PX 1000x1000x320 | AL2: CAB PX 1000x1250x320 | AM2: CAB PX 1250x750x320 | AN2: CAB PX 1250x1000x320 | AO2: CAB P 315x215x170 | AP2: CAB P 415x315x170 | AQ2: CAB P 515x415x230 | AR2: CAB P 615x415x230 | AS2: CAB P 735x535x270 | AT2: CAB P 835x635x300 | AU2: CAB P 1035x835x300 | AV2: CAB SL 300x200x150 | AW2: CAB SL 200x300x150 | AX2: CAB SL 300x300x150 | AY2: CAB SL 300x300x210 | AZ2: CAB SL 300x300x250 | BA2: CAB SL 400x300x150 | BB2: CAB SL 400x300x210 | BC2: CAB SL 400x300x250 | BD2: CAB SL 500x300x210 | BE2: CAB SL 300x400x150 | BF2: CAB SL 300x400x210 | BG2: CAB SL 300x400x250 | BH2: CAB SL 400x400x150 | BI2: CAB SL 400x400x210 | BJ2: CAB SL 400x400x250 | BK2: CAB SL 400x400x300 | BL2: CAB SL 500x400x210 | BM2: CAB SL 500x400x250 | BN2: CAB SL 500x400x300 | BO2: CAB SL 600x400x210 | BP2: CAB SL 600x400x250 | BQ2: CAB SL 600x400x300 | BR2: CAB SL 800x400x210 | BS2: CAB SL 800x400x250 | BT2: CAB SL 800x400x300 | BU2: CAB SL 1000x400x250 | BV2: CAB SL 1000x400x300 | BW2: CAB SL 500x500x210 | BX2: CAB SL 500x500x300 | BY2: CAB SL 600x500x210 | BZ2: CAB SL 600x500x250 | CA2: CAB SL 600x500x300 | CB2: CAB SL 700x500x250 | CC2: CAB SL 400x600x210 | CD2: CAB SL 400x600x250 | CE2: CAB SL 400x600x300 | CF2: CAB SL 500x600x300 | CG2: CAB SL 600x600x210 | CH2: CAB SL 600x600x250 | CI2: CAB SL 600x600x300 | CJ2: CAB SL 600x600x400 | CK2: CAB SL 800x600x210 | CL2: CAB SL 800x600x250 | CM2: CAB SL 800x600x300 | CN2: CAB SL 800x600x400 | CO2: CAB SL 1000x600x250 | CP2: CAB SL 1000x600x300 | CQ2: CAB SL 1000x600x400 | CR2: CAB SL 1200x600x250 | CS2: CAB SL 1200x600x300 | CT2: CAB SL 1200x600x400 | CU2: CAB SL 600x800x250 | CV2: CAB SL 600x800x300 | CW2: CAB SL 800x800x210 | CX2: CAB SL 800x800x250 | CY2: CAB SL 800x800x300 | CZ2: CAB SL 800x800x400 | DA2: CAB SL 1000x800x250 | DB2: CAB SL 1000x800x300 | DC2: CAB SL 1000x800x400 | DD2: CAB SL 1200x800x250 | DE2: CAB SL 1200x800x300 | DF2: CAB SL 1200x800x400 | DG2: TBSL 150x150x80 | DH2: TBSL 150x200x80 | DI2: TBSL 200x200x80 | DJ2: TBSL 250x200x80 | DK2: TBSL 250x250x80 | DL2: TBSL 300x250x80 | DM2: TBSL 300x300x80 | DN2: TBSL 300x400x80 | DO2: TBSL 150x150x100 | DP2: TBSL 150x200x100 | DQ2: TBSL 200x200x100 | DR2: TBSL 250x200x100 | DS2: TBSL 250x250x100 | DT2: TBSL 300x250x100 | DU2: TBSL 300x300x100 | DV2: TBSL 300x400x100 | DW2: TBSL 150x150x120 | DX2: TBSL 150x200x120 | DY2: TBSL 200x200x120 | DZ2: TBSL 250x200x120 | EA2: TBSL 250x250x120 | EB2: TBSL 300x250x120 | EC2: TBSL 300x300x120 | ED2: TBSL 300x400x120 | EE2: SLN 320x220x180 | EF2: SLN 320x220x260 | EG2: SLN 320x320x180 | EH2: SLN 320x320x260 | EI2: SLN 440x320x180 | EJ2: SLN 440x320x260 | EK2: SLN 640x320x180 | EL2: SLN 640x320x260 | EM2: SLN 640x440x180 | EN2: SLN 640x440x260 | EO2: ARCA JIG (US) 152x152x102 | EP2: ARCA JIG (US) 203x152x127 | EQ2: ARCA JIG (US) 203x203x102 | ER2: ARCA JIG (US) 254x203x102 | ES2: ARCA JIG (US) 254x203x152 | ET2: ARCA JIG (US) 254x254x152 | EU2: ARCA JIG (US) 305x254x152 | EV2: ARCA JIG (US) 356x305x178 | EW2: ARCA JIG (US) 406x356x203 | EX2: ARCA JIG (US) 457x406x254 | EY2: CAB PC/ABS 150x150x110 | EZ2: CAB PC/ABS 250x150x110 | FA2: CAB PC/ABS 350x250x150 | FB2: CAB PC/ABS 300x200x180 | FC2: CAB PC/ABS 300x300x180 | FD2: CAB PC/ABS 400x300x180 | FE2: CAB PC/ABS 400x300x160 | FF2: CAB PC/ABS 450x350x160 | FG2: CAB PC/ABS 500x400x200 | FH2: CAB PC/ABS 600x400x220 | FI2: QUICK 300x200x170 | FJ2: QUICK 300x300x170 | FK2: QUICK 400x300x170 | FL2: QUICK 400x300x230 | FM2: QUICK 400x400x170 | FN2: QUICK 600x300x170 | FO2: QUICK 600x400x210 | FP2: QUICK 600x400x270 | FQ2: EK 190x190x130 | FR2: EK 190x190x180 | FS2: EK 280x190x130 | FT2: EK 280x190x180 | FU2: EK 380x190x130 | FV2: EK 380x190x180 | FW2: EK 280x280x130 | FX2: EK 280x280x180 | FY2: EK 380x280x130 | FZ2: EK 380x280x180 | GA2: EK 380x280x230 | GB2: EK 560x280x130 | GC2: EK 560x280x180 | GD2: EK 560x380x180 | GE2: EK 760x560x250 | GF2: SOLID PC/ABS 188x188x130 | GG2: SOLID PC/ABS 188x188x180 | GH2: SOLID PC/ABS 278x188x130 | GI2: SOLID PC/ABS 278x188x180 | GJ2: SOLID PC/ABS 378x188x130 | GK2: SOLID PC/ABS 378x188x180 | GL2: SOLID PC/ABS 278x278x130 | GM2: SOLID PC/ABS 278x278x180 | GN2: SOLID PC/ABS 378x278x130 | GO2: SOLID PC/ABS 378x278x180 | GP2: SOLID PC/ABS 558x278x130 | GQ2: SOLID PC/ABS 558x378x180 | GR2: SOLID PC/ABS 757x559x250 | GS2: SM 188x278x130 | GT2: SM 188x278x180 | GU2: SM 278x278x130 | GV2: SM 278x278x180 | GW2: SM 278x378x130 | GX2: SM 278x378x180 | GY2: STCP/STC 1275(420)x265x250 | GZ2: STCP/STC 1435(580)x265x250 | HA2: STCP/STC 1695(840)x265x250 | HB2: STCP/STC 1275(420)x400x250 | HC2: STCP/STC 1435(580)x400x250 | HD2: STCP/STC 1695(840)x400x250 | HE2: STCP/STC 1730(880)x400x320 | HF2: STCP/STC 1275(420)x530x250 | HG2: STCP/STC 1435(580)x530x250 | HH2: STCP/STC 1695(840)x530x250 | HI2: STCP/STC 1730(880)x530x320 | HJ2: STCP/STC 1290(420)x660x250 | HK2: STCP/STC 1420(580)x660x250 | HL2: STCP/STC 1730(840)x660x250 | HM2: STCP/STC 1730(880)x660x320
A3: Product | F3: H | G3: 300 | H3: 400 | I3: 400 | J3: 500 | K3: 600 | L3: 700 | M3: 800 | N3: 300 | O3: 400 | P3: 400 | Q3: 500 | R3: 600 | S3: 700 | T3: 800 | U3: 300 | V3: 400 | W3: 400 | X3: 500 | Y3: 600 | Z3: 600 | AA3: 800 | AB3: 800 | AC3: 500 | AD3: 500 | AE3: 750 | AF3: 750 | AG3: 750 | AH3: 750 | AI3: 1000 | AJ3: 1000 | AK3: 1000 | AL3: 1000 | AM3: 1250 | AN3: 1250 | AO3: 315 | AP3: 415 | AQ3: 515 | AR3: 615 | AS3: 735 | AT3: 835 | AU3: 1035 | AV3: 300 | AW3: 200 | AX3: 300 | AY3: 300 | AZ3: 300 | BA3: 400 | BB3: 400 | BC3: 400 | BD3: 500 | BE3: 300 | BF3: 300 | BG3: 300 | BH3: 400 | BI3: 400 | BJ3: 400 | BK3: 400 | BL3: 500 | BM3: 500 | BN3: 500 | BO3: 600 | BP3: 600 | BQ3: 600 | BR3: 800 | BS3: 800 | BT3: 800 | BU3: 1000 | BV3: 1000 | BW3: 500 | BX3: 500 | BY3: 600 | BZ3: 600 | CA3: 600 | CB3: 700 | CC3: 400 | CD3: 400 | CE3: 400 | CF3: 500 | CG3: 600 | CH3: 600 | CI3: 600 | CJ3: 600 | CK3: 800 | CL3: 800 | CM3: 800 | CN3: 800 | CO3: 1000 | CP3: 1000 | CQ3: 1000 | CR3: 1200 | CS3: 1200 | CT3: 1200 | CU3: 600 | CV3: 600 | CW3: 800 | CX3: 800 | CY3: 800 | CZ3: 800 | DA3: 1000 | DB3: 1000 | DC3: 1000 | DD3: 1200 | DE3: 1200 | DF3: 1200 | DG3: 150 | DH3: 150 | DI3: 200 | DJ3: 250 | DK3: 250 | DL3: 300 | DM3: 300 | DN3: 300 | DO3: 150 | DP3: 150 | DQ3: 200 | DR3: 250 | DS3: 250 | DT3: 300 | DU3: 300 | DV3: 300 | DW3: 150 | DX3: 150 | DY3: 200 | DZ3: 250 | EA3: 250 | EB3: 300 | EC3: 300 | ED3: 300 | EE3: 320 | EF3: 320 | EG3: 320 | EH3: 320 | EI3: 440 | EJ3: 440 | EK3: 640 | EL3: 640 | EM3: 640 | EN3: 640 | EO3: 152 | EP3: 203 | EQ3: 203 | ER3: 254 | ES3: 254 | ET3: 254 | EU3: 305 | EV3: 356 | EW3: 406 | EX3: 457 | EY3: 150 | EZ3: 250 | FA3: 350 | FB3: 300 | FC3: 300 | FD3: 400 | FE3: 400 | FF3: 450 | FG3: 500 | FH3: 600 | FI3: 300 | FJ3: 300 | FK3: 400 | FL3: 400 | FM3: 400 | FN3: 600 | FO3: 600 | FP3: 600 | FQ3: 190 | FR3: 190 | FS3: 280 | FT3: 280 | FU3: 380 | FV3: 380 | FW3: 280 | FX3: 280 | FY3: 380 | FZ3: 380 | GA3: 380 | GB3: 560 | GC3: 560 | GD3: 560 | GE3: 760 | GF3: 188 | GG3: 188 | GH3: 278 | GI3: 278 | GJ3: 378 | GK3: 378 | GL3: 278 | GM3: 278 | GN3: 378 | GO3: 378 | GP3: 558 | GQ3: 558 | GR3: 757 | GS3: 188 | GT3: 188 | GU3: 278 | GV3: 278 | GW3: 278 | GX3: 278 | GY3: 420 | GZ3: 580 | HA3: 840 | HB3: 420 | HC3: 580 | HD3: 840 | HE3: 880 | HF3: 420 | HG3: 580 | HH3: 840 | HI3: 880 | HJ3: 420 | HK3: 580 | HL3: 840 | HM3: 880
A4: =Sheet1!$D$5 -> ARCA | C4: =CONCATENATE(A4," ",A2) -> ARCA 500x400x210 | F4: W | G4: 200 | H4: 300 | I4: 300 | J4: 400 | K4: 400 | L4: 500 | M4: 600 | N4: 200 | O4: 300 | P4: 300 | Q4: 400 | R4: 400 | S4: 500 | T4: 600 | U4: 250 | V4: 300 | W4: 400 | X4: 400 | Y4: 400 | Z4: 500 | AA4: 300 | AB4: 600 | AC4: 500 | AD4: 750 | AE4: 500 | AF4: 750 | AG4: 1000 | AH4: 1250 | AI4: 500 | AJ4: 750 | AK4: 1000 | AL4: 1250 | AM4: 750 | AN4: 1000 | AO4: 215 | AP4: 315 | AQ4: 415 | AR4: 415 | AS4: 535 | AT4: 635 | AU4: 835 | AV4: 200 | AW4: 300 | AX4: 300 | AY4: 300 | AZ4: 300 | BA4: 300 | BB4: 300 | BC4: 300 | BD4: 300 | BE4: 400 | BF4: 400 | BG4: 400 | BH4: 400 | BI4: 400 | BJ4: 400 | BK4: 400 | BL4: 400 | BM4: 400 | BN4: 400 | BO4: 400 | BP4: 400 | BQ4: 400 | BR4: 400 | BS4: 400 | BT4: 400 | BU4: 400 | BV4: 400 | BW4: 500 | BX4: 500 | BY4: 500 | BZ4: 500 | CA4: 500 | CB4: 500 | CC4: 600 | CD4: 600 | CE4: 600 | CF4: 600 | CG4: 600 | CH4: 600 | CI4: 600 | CJ4: 600 | CK4: 600 | CL4: 600 | CM4: 600 | CN4: 600 | CO4: 600 | CP4: 600 | CQ4: 600 | CR4: 600 | CS4: 600 | CT4: 600 | CU4: 800 | CV4: 800 | CW4: 800 | CX4: 800 | CY4: 800 | CZ4: 800 | DA4: 800 | DB4: 800 | DC4: 800 | DD4: 800 | DE4: 800 | DF4: 800 | DG4: 150 | DH4: 200 | DI4: 200 | DJ4: 200 | DK4: 250 | DL4: 250 | DM4: 300 | DN4: 400 | DO4: 150 | DP4: 200 | DQ4: 200 | DR4: 200 | DS4: 250 | DT4: 250 | DU4: 300 | DV4: 400 | DW4: 150 | DX4: 200 | DY4: 200 | DZ4: 200 | EA4: 250 | EB4: 250 | EC4: 300 | ED4: 400 | EE4: 220 | EF4: 220 | EG4: 320 | EH4: 320 | EI4: 320 | EJ4: 320 | EK4: 320 | EL4: 320 | EM4: 440 | EN4: 440 | EO4: 152 | EP4: 152 | EQ4: 203 | ER4: 203 | ES4: 203 | ET4: 254 | EU4: 254 | EV4: 305 | EW4: 356 | EX4: 406 | EY4: 150 | EZ4: 150 | FA4: 250 | FB4: 200 | FC4: 300 | FD4: 300 | FE4: 300 | FF4: 350 | FG4: 400 | FH4: 400 | FI4: 200 | FJ4: 300 | FK4: 300 | FL4: 300 | FM4: 400 | FN4: 300 | FO4: 400 | FP4: 400 | FQ4: 190 | FR4: 190 | FS4: 190 | FT4: 190 | FU4: 190 | FV4: 190 | FW4: 280 | FX4: 280 | FY4: 280 | FZ4: 280 | GA4: 280 | GB4: 280 | GC4: 280 | GD4: 380 | GE4: 560 | GF4: 188 | GG4: 188 | GH4: 188 | GI4: 188 | GJ4: 188 | GK4: 188 | GL4: 278 | GM4: 278 | GN4: 278 | GO4: 278 | GP4: 278 | GQ4: 378 | GR4: 559 | GS4: 278 | GT4: 278 | GU4: 278 | GV4: 278 | GW4: 378 | GX4: 378 | GY4: 265 | GZ4: 265 | HA4: 265 | HB4: 400 | HC4: 400 | HD4: 400 | HE4: 400 | HF4: 530 | HG4: 530 | HH4: 530 | HI4: 530 | HJ4: 660 | HK4: 660 | HL4: 660 | HM4: 660
F5: D | G5: 150 | H5: 150 | I5: 210 | J5: 210 | K5: 210 | L5: 300 | M5: 300 | N5: 150 | O5: 150 | P5: 210 | Q5: 210 | R5: 210 | S5: 300 | T5: 300 | U5: 140 | V5: 200 | W5: 200 | X5: 200 | Y5: 230 | Z5: 230 | AA5: 230 | AB5: 300 | AC5: 320 | AD5: 320 | AE5: 320 | AF5: 320 | AG5: 320 | AH5: 320 | AI5: 320 | AJ5: 320 | AK5: 320 | AL5: 320 | AM5: 320 | AN5: 320 | AO5: 170 | AP5: 170 | AQ5: 230 | AR5: 230 | AS5: 270 | AT5: 300 | AU5: 300 | AV5: 150 | AW5: 150 | AX5: 150 | AY5: 210 | AZ5: 250 | BA5: 150 | BB5: 210 | BC5: 250 | BD5: 210 | BE5: 150 | BF5: 210 | BG5: 250 | BH5: 150 | BI5: 210 | BJ5: 250 | BK5: 300 | BL5: 210 | BM5: 250 | BN5: 300 | BO5: 210 | BP5: 250 | BQ5: 300 | BR5: 210 | BS5: 250 | BT5: 300 | BU5: 250 | BV5: 300 | BW5: 210 | BX5: 300 | BY5: 210 | BZ5: 250 | CA5: 300 | CB5: 250 | CC5: 210 | CD5: 250 | CE5: 300 | CF5: 300 | CG5: 210 | CH5: 250 | CI5: 300 | CJ5: 400 | CK5: 210 | CL5: 250 | CM5: 300 | CN5: 400 | CO5: 250 | CP5: 300 | CQ5: 400 | CR5: 250 | CS5: 300 | CT5: 400 | CU5: 250 | CV5: 300 | CW5: 210 | CX5: 250 | CY5: 300 | CZ5: 400 | DA5: 250 | DB5: 300 | DC5: 400 | DD5: 250 | DE5: 300 | DF5: 400 | DG5: 80 | DH5: 80 | DI5: 80 | DJ5: 80 | DK5: 80 | DL5: 80 | DM5: 80 | DN5: 80 | DO5: 100 | DP5: 100 | DQ5: 100 | DR5: 100 | DS5: 100 | DT5: 100 | DU5: 100 | DV5: 100 | DW5: 120 | DX5: 120 | DY5: 120 | DZ5: 120 | EA5: 120 | EB5: 120 | EC5: 120 | ED5: 120 | EE5: 180 | EF5: 260 | EG5: 180 | EH5: 260 | EI5: 180 | EJ5: 260 | EK5: 180 | EL5: 260 | EM5: 180 | EN5: 260 | EO5: 102 | EP5: 127 | EQ5: 102 | ER5: 102 | ES5: 152 | ET5: 152 | EU5: 152 | EV5: 178 | EW5: 203 | EX5: 254 | EY5: 110 | EZ5: 110 | FA5: 150 | FB5: 180 | FC5: 180 | FD5: 180 | FE5: 160 | FF5: 160 | FG5: 200 | FH5: 220 | FI5: 170 | FJ5: 170 | FK5: 170 | FL5: 230 | FM5: 170 | FN5: 170 | FO5: 210 | FP5: 270 | FQ5: 130 | FR5: 180 | FS5: 130 | FT5: 180 | FU5: 130 | FV5: 180 | FW5: 130 | FX5: 180 | FY5: 130 | FZ5: 180 | GA5: 230 | GB5: 130 | GC5: 180 | GD5: 180 | GE5: 250 | GF5: 130 | GG5: 180 | GH5: 130 | GI5: 180 | GJ5: 130 | GK5: 180 | GL5: 130 | GM5: 180 | GN5: 130 | GO5: 180 | GP5: 130 | GQ5: 180 | GR5: 250 | GS5: 130 | GT5: 180 | GU5: 130 | GV5: 180 | GW5: 130 | GX5: 180 | GY5: 250 | GZ5: 250 | HA5: 250 | HB5: 250 | HC5: 250 | HD5: 250 | HE5: 320 | HF5: 250 | HG5: 250 | HH5: 250 | HI5: 320 | HJ5: 250 | HK5: 250 | HL5: 250 | HM5: 320
B6: Installation | C6: Picture | D6: Effective area | E6: Top area | G6: K value without inner door | N6: K value with inner door
A7: 140806 | B7: Single | D7: =(1.8*H*(W+D)+1.4*W*D)/1000000 -> 0.6666 | E7: =W*D/1000000 -> 0.084 | G7: 3.1 | H7: 3.1 | I7: 3.1 | J7: 3.3 | K7: 3.3 | L7: 3.3 | M7: 3.3 | N7: 2.7 | O7: 2.7 | P7: 2.7 | Q7: 3 | R7: 3 | S7: 3 | T7: 3 | U7: 3.4 | V7: 3.4 | W7: 3.4 | X7: 3.4 | Y7: 3.4 | Z7: 3.4 | AA7: 3.4 | AB7: 3.4 | AC7: 3.3 | AD7: 3.3 | AE7: 3.3 | AF7: 3.3 | AG7: 3.3 | AH7: 3.3 | AI7: 3.3 | AJ7: 3.3 | AK7: 3.3 | AL7: 3.3 | AM7: 3.3 | AN7: 3.3 | AO7: 2.7 | AP7: 2.7 | AQ7: 2.7 | AR7: 2.7 | AS7: 2.7 | AT7: 3.1 | AU7: 3.1 | AV7: 3.6 | AW7: 3.6 | AX7: 3.6 | AY7: 3.6 | AZ7: 3.6 | BA7: 3.6 | BB7: 3.6 | BC7: 3.6 | BD7: 3.6 | BE7: 3.6 | BF7: 3.6 | BG7: 3.6 | BH7: 3.6 | BI7: 3.6 | BJ7: 3.6 | BK7: 3.6 | BL7: 3.6 | BM7: 3.6 | BN7: 3.6 | BO7: 3.6 | BP7: 3.6 | BQ7: 3.6 | BR7: 3.6 | BS7: 3.6 | BT7: 3.6 | BU7: 3.6 | BV7: 3.6 | BW7: 3.6 | BX7: 3.6 | BY7: 3.6 | BZ7: 3.6 | CA7: 3.6 | CB7: 3.6 | CC7: 3.6 | CD7: 3.6 | CE7: 3.6 | CF7: 3.6 | CG7: 3.6 | CH7: 3.6 | CI7: 3.6 | CJ7: 3.6 | CK7: 3.6 | CL7: 3.6 | CM7: 3.6 | CN7: 3.6 | CO7: 3.6 | CP7: 3.6 | CQ7: 3.6 | CR7: 3.6 | CS7: 3.6 | CT7: 3.6 | CU7: 3.6 | CV7: 3.6 | CW7: 3.6 | CX7: 3.6 | CY7: 3.6 | CZ7: 3.6 | DA7: 3.6 | DB7: 3.6 | DC7: 3.6 | DD7: 3.6 | DE7: 3.6 | DF7: 3.6 | DG7: 3.7 | DH7: 3.5 | DI7: 3.6 | DJ7: 3.6 | DK7: 3.6 | DL7: 3.7 | DM7: 3.6 | DN7: 3.7 | DO7: 3.5 | DP7: 3.8 | DQ7: 3.6 | DR7: 3.6 | DS7: 3.7 | DT7: 3.6 | DU7: 3.6 | DV7: 3.6 | DW7: 3.4 | DX7: 3.7 | DY7: 3.5 | DZ7: 3.6 | EA7: 3.6 | EB7: 3.6 | EC7: 3.6 | ED7: 3.7 | EE7: 3.3 | EF7: 3.3 | EG7: 3.3 | EH7: 3.3 | EI7: 3.3 | EJ7: 3.3 | EK7: 3.3 | EL7: 3.3 | EM7: 3.3 | EN7: 3.3 | EO7: 3.1 | EP7: 3.1 | EQ7: 3.1 | ER7: 3.1 | ES7: 3.1 | ET7: 3.1 | EU7: 3.1 | EV7: 3.1 | EW7: 3.1 | EX7: 3.1 | EY7: 3.1 | EZ7: 3.1 | FA7: 3.1 | FB7: 3.1 | FC7: 3.1 | FD7: 3.1 | FE7: 3.1 | FF7: 3.1 | FG7: 3.3 | FH7: 3.3 | FI7: 3.2 | FJ7: 3.2 | FK7: 3.2 | FL7: 3.2 | FM7: 3.2 | FN7: 3.2 | FO7: 3.2 | FP7: 3.2 | FQ7: 3.7 | FR7: 3.7 | FS7: 3.2 | FT7: 3.2 | FU7: 3.2 | FV7: 3.2 | FW7: 3.2 | FX7: 3.2 | FY7: 3.2 | FZ7: 3.2 | GA7: 3.2 | GB7: 3.2 | GC7: 3.2 | GD7: 3.2 | GE7: 3.2 | GF7: 3.7 | GG7: 3.7 | GH7: 3.2 | GI7: 3.2 | GJ7: 3.2 | GK7: 3.2 | GL7: 3.2 | GM7: 3.2 | GN7: 3.2 | GO7: 3.2 | GP7: 3.2 | GQ7: 3.2 | GR7: 3.2 | GS7: 3.2 | GT7: 3.2 | GU7: 3.2 | GV7: 3.2 | GW7: 3.2 | GX7: 3.2 | GY7: 3.3 | GZ7: 3.3 | HA7: 3.3 | HB7: 3.3 | HC7: 3.3 | HD7: 3.3 | HE7: 3.3 | HF7: 3.3 | HG7: 3.3 | HH7: 3.3 | HI7: 3.3 | HJ7: 3.3 | HK7: 3.3 | HL7: 3.3 | HM7: 3.3
A8: 140810 | B8: End of Row | D8: =(1.8*H*W+1.4*D*(H+W))/1000000 -> 0.6246 | E8: =W*D/1000000 -> 0.084 | G8: 3.1 | H8: 3.1 | I8: 3.1 | J8: 3.3 | K8: 3.3 | L8: 3.3 | M8: 3.3 | N8: 2.7 | O8: 2.7 | P8: 2.7 | Q8: 3 | R8: 3 | S8: 3 | T8: 3 | U8: 3.4 | V8: 3.4 | W8: 3.4 | X8: 3.4 | Y8: 3.4 | Z8: 3.4 | AA8: 3.4 | AB8: 3.4 | AC8: 3.1 | AD8: 3.1 | AE8: 3.1 | AF8: 3.1 | AG8: 3.1 | AH8: 3.1 | AI8: 3.1 | AJ8: 3.1 | AK8: 3.1 | AL8: 3.1 | AM8: 3.1 | AN8: 3.1 | AO8: 2.7 | AP8: 2.7 | AQ8: 2.7 | AR8: 2.7 | AS8: 2.7 | AT8: 3.1 | AU8: 3.1 | AV8: 3.6 | AW8: 3.6 | AX8: 3.6 | AY8: 3.6 | AZ8: 3.6 | BA8: 3.6 | BB8: 3.6 | BC8: 3.6 | BD8: 3.6 | BE8: 3.6 | BF8: 3.6 | BG8: 3.6 | BH8: 3.6 | BI8: 3.6 | BJ8: 3.6 | BK8: 3.6 | BL8: 3.6 | BM8: 3.6 | BN8: 3.6 | BO8: 3.6 | BP8: 3.6 | BQ8: 3.6 | BR8: 3.6 | BS8: 3.6 | BT8: 3.6 | BU8: 3.6 | BV8: 3.6 | BW8: 3.6 | BX8: 3.6 | BY8: 3.6 | BZ8: 3.6 | CA8: 3.6 | CB8: 3.6 | CC8: 3.6 | CD8: 3.6 | CE8: 3.6 | CF8: 3.6 | CG8: 3.6 | CH8: 3.6 | CI8: 3.6 | CJ8: 3.6 | CK8: 3.6 | CL8: 3.6 | CM8: 3.6 | CN8: 3.6 | CO8: 3.6 | CP8: 3.6 | CQ8: 3.6 | CR8: 3.6 | CS8: 3.6 | CT8: 3.6 | CU8: 3.6 | CV8: 3.6 | CW8: 3.6 | CX8: 3.6 | CY8: 3.6 | CZ8: 3.6 | DA8: 3.6 | DB8: 3.6 | DC8: 3.6 | DD8: 3.6 | DE8: 3.6 | DF8: 3.6 | DG8: 3.7 | DH8: 3.5 | DI8: 3.6 | DJ8: 3.6 | DK8: 3.6 | DL8: 3.7 | DM8: 3.6 | DN8: 3.7 | DO8: 3.5 | DP8: 3.8 | DQ8: 3.6 | DR8: 3.6 | DS8: 3.7 | DT8: 3.6 | DU8: 3.6 | DV8: 3.6 | DW8: 3.4 | DX8: 3.7 | DY8: 3.5 | DZ8: 3.6 | EA8: 3.6 | EB8: 3.6 | EC8: 3.6 | ED8: 3.7 | EE8: 3.3 | EF8: 3.3 | EG8: 3.3 | EH8: 3.3 | EI8: 3.3 | EJ8: 3.3 | EK8: 3.3 | EL8: 3.3 | EM8: 3.3 | EN8: 3.3 | EO8: 3.1 | EP8: 3.1 | EQ8: 3.1 | ER8: 3.1 | ES8: 3.1 | ET8: 3.1 | EU8: 3.1 | EV8: 3.1 | EW8: 3.1 | EX8: 3.1 | EY8: 3.1 | EZ8: 3.1 | FA8: 3.1 | FB8: 3.1 | FC8: 3.1 | FD8: 3.1 | FE8: 3.1 | FF8: 3.1 | FG8: 3.3 | FH8: 3.3 | FI8: 3.3 | FJ8: 3.3 | FK8: 3.3 | FL8: 3.3 | FM8: 3.3 | FN8: 3.3 | FO8: 3.3 | FP8: 3.3 | FQ8: 3.7 | FR8: 3.7 | FS8: 3.3 | FT8: 3.3 | FU8: 3.3 | FV8: 3.3 | FW8: 3.3 | FX8: 3.3 | FY8: 3.3 | FZ8: 3.3 | GA8: 3.3 | GB8: 3.3 | GC8: 3.3 | GD8: 3.3 | GE8: 3.3 | GF8: 3.7 | GG8: 3.7 | GH8: 3.3 | GI8: 3.3 | GJ8: 3.3 | GK8: 3.3 | GL8: 3.3 | GM8: 3.3 | GN8: 3.3 | GO8: 3.3 | GP8: 3.3 | GQ8: 3.3 | GR8: 3.3 | GS8: 3.3 | GT8: 3.3 | GU8: 3.3 | GV8: 3.3 | GW8: 3.3 | GX8: 3.3 | GY8: 3.3 | GZ8: 3.3 | HA8: 3.3 | HB8: 3.3 | HC8: 3.3 | HD8: 3.3 | HE8: 3.3 | HF8: 3.3 | HG8: 3.3 | HH8: 3.3 | HI8: 3.3 | HJ8: 3.3 | HK8: 3.3 | HL8: 3.3 | HM8: 3.3
A9: 140813 | B9: Intermediated | D9: =(1.8*H*W+H*D+1.4*W*D)/1000000 -> 0.5826 | E9: =W*D/1000000 -> 0.084 | G9: 3.1 | H9: 3.1 | I9: 3.1 | J9: 3.3 | K9: 3.3 | L9: 3.3 | M9: 3.3 | N9: 2.7 | O9: 2.7 | P9: 2.7 | Q9: 3 | R9: 3 | S9: 3 | T9: 3 | U9: 3.4 | V9: 3.4 | W9: 3.4 | X9: 3.4 | Y9: 3.4 | Z9: 3.4 | AA9: 3.4 | AB9: 3.4 | AC9: 3.1 | AD9: 3.1 | AE9: 3.1 | AF9: 3.1 | AG9: 3.1 | AH9: 3.1 | AI9: 3.1 | AJ9: 3.1 | AK9: 3.1 | AL9: 3.1 | AM9: 3.1 | AN9: 3.1 | AO9: 2.7 | AP9: 2.7 | AQ9: 2.7 | AR9: 2.7 | AS9: 2.7 | AT9: 3.1 | AU9: 3.1 | AV9: 3.6 | AW9: 3.6 | AX9: 3.6 | AY9: 3.6 | AZ9: 3.6 | BA9: 3.6 | BB9: 3.6 | BC9: 3.6 | BD9: 3.6 | BE9: 3.6 | BF9: 3.6 | BG9: 3.6 | BH9: 3.6 | BI9: 3.6 | BJ9: 3.6 | BK9: 3.6 | BL9: 3.6 | BM9: 3.6 | BN9: 3.6 | BO9: 3.6 | BP9: 3.6 | BQ9: 3.6 | BR9: 3.6 | BS9: 3.6 | BT9: 3.6 | BU9: 3.6 | BV9: 3.6 | BW9: 3.6 | BX9: 3.6 | BY9: 3.6 | BZ9: 3.6 | CA9: 3.6 | CB9: 3.6 | CC9: 3.6 | CD9: 3.6 | CE9: 3.6 | CF9: 3.6 | CG9: 3.6 | CH9: 3.6 | CI9: 3.6 | CJ9: 3.6 | CK9: 3.6 | CL9: 3.6 | CM9: 3.6 | CN9: 3.6 | CO9: 3.6 | CP9: 3.6 | CQ9: 3.6 | CR9: 3.6 | CS9: 3.6 | CT9: 3.6 | CU9: 3.6 | CV9: 3.6 | CW9: 3.6 | CX9: 3.6 | CY9: 3.6 | CZ9: 3.6 | DA9: 3.6 | DB9: 3.6 | DC9: 3.6 | DD9: 3.6 | DE9: 3.6 | DF9: 3.6 | DG9: 3.7 | DH9: 3.5 | DI9: 3.6 | DJ9: 3.6 | DK9: 3.6 | DL9: 3.7 | DM9: 3.6 | DN9: 3.7 | DO9: 3.5 | DP9: 3.8 | DQ9: 3.6 | DR9: 3.6 | DS9: 3.7 | DT9: 3.6 | DU9: 3.6 | DV9: 3.6 | DW9: 3.4 | DX9: 3.7 | DY9: 3.5 | DZ9: 3.6 | EA9: 3.6 | EB9: 3.6 | EC9: 3.6 | ED9: 3.7 | EE9: 3.3 | EF9: 3.3 | EG9: 3.3 | EH9: 3.3 | EI9: 3.3 | EJ9: 3.3 | EK9: 3.3 | EL9: 3.3 | EM9: 3.3 | EN9: 3.3 | EO9: 3.1 | EP9: 3.1 | EQ9: 3.1 | ER9: 3.1 | ES9: 3.1 | ET9: 3.1 | EU9: 3.1 | EV9: 3.1 | EW9: 3.1 | EX9: 3.1 | EY9: 3.1 | EZ9: 3.1 | FA9: 3.1 | FB9: 3.1 | FC9: 3.1 | FD9: 3.1 | FE9: 3.1 | FF9: 3.1 | FG9: 3.3 | FH9: 3.3 | FI9: 3.4 | FJ9: 3.4 | FK9: 3.4 | FL9: 3.4 | FM9: 3.4 | FN9: 3.4 | FO9: 3.4 | FP9: 3.4 | FQ9: 3.7 | FR9: 3.7 | FS9: 3.4 | FT9: 3.4 | FU9: 3.4 | FV9: 3.4 | FW9: 3.4 | FX9: 3.4 | FY9: 3.4 | FZ9: 3.4 | GA9: 3.4 | GB9: 3.4 | GC9: 3.4 | GD9: 3.4 | GE9: 3.4 | GF9: 3.7 | GG9: 3.7 | GH9: 3.4 | GI9: 3.4 | GJ9: 3.4 | GK9: 3.4 | GL9: 3.4 | GM9: 3.4 | GN9: 3.4 | GO9: 3.4 | GP9: 3.4 | GQ9: 3.4 | GR9: 3.4 | GS9: 3.4 | GT9: 3.4 | GU9: 3.4 | GV9: 3.4 | GW9: 3.4 | GX9: 3.4 | GY9: 3.3 | GZ9: 3.3 | HA9: 3.3 | HB9: 3.3 | HC9: 3.3 | HD9: 3.3 | HE9: 3.3 | HF9: 3.3 | HG9: 3.3 | HH9: 3.3 | HI9: 3.3 | HJ9: 3.3 | HK9: 3.3 | HL9: 3.3 | HM9: 3.3
A10: 140811 | B10: Top covered | D10: =(1.8*H*(W+D)+0.7*W*D)/1000000 -> 0.6078 | E10: =W*D/1000000*0.15 -> 0.0126 | G10: 2.9 | H10: 2.9 | I10: 2.9 | J10: 3.3 | K10: 3.3 | L10: 3.3 | M10: 3.3 | N10: 2.4 | O10: 2.4 | P10: 2.4 | Q10: 3 | R10: 3 | S10: 3 | T10: 3 | U10: 3.4 | V10: 3.4 | W10: 3.4 | X10: 3.4 | Y10: 3.4 | Z10: 3.4 | AA10: 3.4 | AB10: 3.4 | AC10: 2.9 | AD10: 2.9 | AE10: 2.9 | AF10: 2.9 | AG10: 2.9 | AH10: 2.9 | AI10: 2.9 | AJ10: 2.9 | AK10: 2.9 | AL10: 2.9 | AM10: 2.9 | AN10: 2.9 | AO10: 2.7 | AP10: 2.7 | AQ10: 2.7 | AR10: 2.7 | AS10: 2.7 | AT10: 3.1 | AU10: 3.1 | AV10: 3.6 | AW10: 3.6 | AX10: 3.6 | AY10: 3.6 | AZ10: 3.6 | BA10: 3.6 | BB10: 3.6 | BC10: 3.6 | BD10: 3.6 | BE10: 3.6 | BF10: 3.6 | BG10: 3.6 | BH10: 3.6 | BI10: 3.6 | BJ10: 3.6 | BK10: 3.6 | BL10: 3.6 | BM10: 3.6 | BN10: 3.6 | BO10: 3.6 | BP10: 3.6 | BQ10: 3.6 | BR10: 3.6 | BS10: 3.6 | BT10: 3.6 | BU10: 3.6 | BV10: 3.6 | BW10: 3.6 | BX10: 3.6 | BY10: 3.6 | BZ10: 3.6 | CA10: 3.6 | CB10: 3.6 | CC10: 3.6 | CD10: 3.6 | CE10: 3.6 | CF10: 3.6 | CG10: 3.6 | CH10: 3.6 | CI10: 3.6 | CJ10: 3.6 | CK10: 3.6 | CL10: 3.6 | CM10: 3.6 | CN10: 3.6 | CO10: 3.6 | CP10: 3.6 | CQ10: 3.6 | CR10: 3.6 | CS10: 3.6 | CT10: 3.6 | CU10: 3.6 | CV10: 3.6 | CW10: 3.6 | CX10: 3.6 | CY10: 3.6 | CZ10: 3.6 | DA10: 3.6 | DB10: 3.6 | DC10: 3.6 | DD10: 3.6 | DE10: 3.6 | DF10: 3.6 | DG10: 3.3 | DH10: 3.9 | DI10: 3.4 | DJ10: 3.7 | DK10: 3.8 | DL10: 3.6 | DM10: 3.8 | DN10: 3.6 | DO10: 4 | DP10: 3.6 | DQ10: 3.8 | DR10: 3.7 | DS10: 3.7 | DT10: 3.6 | DU10: 3.7 | DV10: 3.8 | DW10: 3.7 | DX10: 3.7 | DY10: 3.8 | DZ10: 3.9 | EA10: 3.7 | EB10: 3.7 | EC10: 3.8 | ED10: 3.7 | EE10: 3.3 | EF10: 3.3 | EG10: 3.3 | EH10: 3.3 | EI10: 3.3 | EJ10: 3.3 | EK10: 3.3 | EL10: 3.3 | EM10: 3.3 | EN10: 3.3 | EO10: 2.9 | EP10: 2.9 | EQ10: 2.9 | ER10: 2.9 | ES10: 2.9 | ET10: 2.9 | EU10: 2.9 | EV10: 2.9 | EW10: 2.9 | EX10: 2.9 | EY10: 2.9 | EZ10: 2.9 | FA10: 2.9 | FB10: 2.9 | FC10: 2.9 | FD10: 2.9 | FE10: 2.9 | FF10: 2.9 | FG10: 3.3 | FH10: 3.3 | FI10: 3 | FJ10: 3 | FK10: 3 | FL10: 3 | FM10: 3 | FN10: 3 | FO10: 3 | FP10: 3 | FQ10: 3.4 | FR10: 3.4 | FS10: 3 | FT10: 3 | FU10: 3 | FV10: 3 | FW10: 3 | FX10: 3 | FY10: 3 | FZ10: 3 | GA10: 3 | GB10: 3 | GC10: 3 | GD10: 3 | GE10: 3 | GF10: 3.4 | GG10: 3.4 | GH10: 3 | GI10: 3 | GJ10: 3 | GK10: 3 | GL10: 3 | GM10: 3 | GN10: 3 | GO10: 3 | GP10: 3 | GQ10: 3 | GR10: 3 | GS10: 3 | GT10: 3 | GU10: 3 | GV10: 3 | GW10: 3 | GX10: 3 | GY10: 3.3 | GZ10: 3.3 | HA10: 3.3 | HB10: 3.3 | HC10: 3.3 | HD10: 3.3 | HE10: 3.3 | HF10: 3.3 | HG10: 3.3 | HH10: 3.3 | HI10: 3.3 | HJ10: 3.3 | HK10: 3.3 | HL10: 3.3 | HM10: 3.3
A11: 140814 | B11: Bottom covered | D11: =(1.8*H*(W+D)+1.4*W*D)/1000000 -> 0.6666 | E11: =W*D/1000000 -> 0.084 | G11: 3.1 | H11: 3.1 | I11: 3.1 | J11: 3.3 | K11: 3.3 | L11: 3.3 | M11: 3.3 | N11: 2.7 | O11: 2.7 | P11: 2.7 | Q11: 3 | R11: 3 | S11: 3 | T11: 3 | U11: 3.4 | V11: 3.4 | W11: 3.4 | X11: 3.4 | Y11: 3.4 | Z11: 3.4 | AA11: 3.4 | AB11: 3.4 | AC11: 3.3 | AD11: 3.3 | AE11: 3.3 | AF11: 3.3 | AG11: 3.3 | AH11: 3.3 | AI11: 3.3 | AJ11: 3.3 | AK11: 3.3 | AL11: 3.3 | AM11: 3.3 | AN11: 3.3 | AO11: 2.7 | AP11: 2.7 | AQ11: 2.7 | AR11: 2.7 | AS11: 2.7 | AT11: 3.1 | AU11: 3.1 | AV11: 3.6 | AW11: 3.6 | AX11: 3.6 | AY11: 3.6 | AZ11: 3.6 | BA11: 3.6 | BB11: 3.6 | BC11: 3.6 | BD11: 3.6 | BE11: 3.6 | BF11: 3.6 | BG11: 3.6 | BH11: 3.6 | BI11: 3.6 | BJ11: 3.6 | BK11: 3.6 | BL11: 3.6 | BM11: 3.6 | BN11: 3.6 | BO11: 3.6 | BP11: 3.6 | BQ11: 3.6 | BR11: 3.6 | BS11: 3.6 | BT11: 3.6 | BU11: 3.6 | BV11: 3.6 | BW11: 3.6 | BX11: 3.6 | BY11: 3.6 | BZ11: 3.6 | CA11: 3.6 | CB11: 3.6 | CC11: 3.6 | CD11: 3.6 | CE11: 3.6 | CF11: 3.6 | CG11: 3.6 | CH11: 3.6 | CI11: 3.6 | CJ11: 3.6 | CK11: 3.6 | CL11: 3.6 | CM11: 3.6 | CN11: 3.6 | CO11: 3.6 | CP11: 3.6 | CQ11: 3.6 | CR11: 3.6 | CS11: 3.6 | CT11: 3.6 | CU11: 3.6 | CV11: 3.6 | CW11: 3.6 | CX11: 3.6 | CY11: 3.6 | CZ11: 3.6 | DA11: 3.6 | DB11: 3.6 | DC11: 3.6 | DD11: 3.6 | DE11: 3.6 | DF11: 3.6 | DG11: 3.7 | DH11: 3.5 | DI11: 3.6 | DJ11: 3.6 | DK11: 3.6 | DL11: 3.7 | DM11: 3.6 | DN11: 3.7 | DO11: 3.5 | DP11: 3.8 | DQ11: 3.6 | DR11: 3.6 | DS11: 3.7 | DT11: 3.6 | DU11: 3.6 | DV11: 3.6 | DW11: 3.4 | DX11: 3.7 | DY11: 3.5 | DZ11: 3.6 | EA11: 3.6 | EB11: 3.6 | EC11: 3.6 | ED11: 3.7 | EE11: 3.3 | EF11: 3.3 | EG11: 3.3 | EH11: 3.3 | EI11: 3.3 | EJ11: 3.3 | EK11: 3.3 | EL11: 3.3 | EM11: 3.3 | EN11: 3.3 | EO11: 3.1 | EP11: 3.1 | EQ11: 3.1 | ER11: 3.1 | ES11: 3.1 | ET11: 3.1 | EU11: 3.1 | EV11: 3.1 | EW11: 3.1 | EX11: 3.1 | EY11: 3.1 | EZ11: 3.1 | FA11: 3.1 | FB11: 3.1 | FC11: 3.1 | FD11: 3.1 | FE11: 3.1 | FF11: 3.1 | FG11: 3.3 | FH11: 3.3 | FI11: 3.2 | FJ11: 3.2 | FK11: 3.2 | FL11: 3.2 | FM11: 3.2 | FN11: 3.2 | FO11: 3.2 | FP11: 3.2 | FQ11: 3.7 | FR11: 3.7 | FS11: 3.2 | FT11: 3.2 | FU11: 3.2 | FV11: 3.2 | FW11: 3.2 | FX11: 3.2 | FY11: 3.2 | FZ11: 3.2 | GA11: 3.2 | GB11: 3.2 | GC11: 3.2 | GD11: 3.2 | GE11: 3.2 | GF11: 3.7 | GG11: 3.7 | GH11: 3.2 | GI11: 3.2 | GJ11: 3.2 | GK11: 3.2 | GL11: 3.2 | GM11: 3.2 | GN11: 3.2 | GO11: 3.2 | GP11: 3.2 | GQ11: 3.2 | GR11: 3.2 | GS11: 3.2 | GT11: 3.2 | GU11: 3.2 | GV11: 3.2 | GW11: 3.2 | GX11: 3.2 | GY11: 3.3 | GZ11: 3.3 | HA11: 3.3 | HB11: 3.3 | HC11: 3.3 | HD11: 3.3 | HE11: 3.3 | HF11: 3.3 | HG11: 3.3 | HH11: 3.3 | HI11: 3.3 | HJ11: 3.3 | HK11: 3.3 | HL11: 3.3 | HM11: 3.3
A12: 140820 | B12: Top & Bottom covered | D12: =(1.8*H*(W+D)+0.7*W*D)/1000000 -> 0.6078 | E12: =W*D/1000000*0.15 -> 0.0126 | G12: 2.9 | H12: 2.9 | I12: 2.9 | J12: 3.3 | K12: 3.3 | L12: 3.3 | M12: 3.3 | N12: 2.4 | O12: 2.4 | P12: 2.4 | Q12: 3 | R12: 3 | S12: 3 | T12: 3 | U12: 3.4 | V12: 3.4 | W12: 3.4 | X12: 3.4 | Y12: 3.4 | Z12: 3.4 | AA12: 3.4 | AB12: 3.4 | AC12: 2.9 | AD12: 2.9 | AE12: 2.9 | AF12: 2.9 | AG12: 2.9 | AH12: 2.9 | AI12: 2.9 | AJ12: 2.9 | AK12: 2.9 | AL12: 2.9 | AM12: 2.9 | AN12: 2.9 | AO12: 2.7 | AP12: 2.7 | AQ12: 2.7 | AR12: 2.7 | AS12: 2.7 | AT12: 3.1 | AU12: 3.1 | AV12: 3.6 | AW12: 3.6 | AX12: 3.6 | AY12: 3.6 | AZ12: 3.6 | BA12: 3.6 | BB12: 3.6 | BC12: 3.6 | BD12: 3.6 | BE12: 3.6 | BF12: 3.6 | BG12: 3.6 | BH12: 3.6 | BI12: 3.6 | BJ12: 3.6 | BK12: 3.6 | BL12: 3.6 | BM12: 3.6 | BN12: 3.6 | BO12: 3.6 | BP12: 3.6 | BQ12: 3.6 | BR12: 3.6 | BS12: 3.6 | BT12: 3.6 | BU12: 3.6 | BV12: 3.6 | BW12: 3.6 | BX12: 3.6 | BY12: 3.6 | BZ12: 3.6 | CA12: 3.6 | CB12: 3.6 | CC12: 3.6 | CD12: 3.6 | CE12: 3.6 | CF12: 3.6 | CG12: 3.6 | CH12: 3.6 | CI12: 3.6 | CJ12: 3.6 | CK12: 3.6 | CL12: 3.6 | CM12: 3.6 | CN12: 3.6 | CO12: 3.6 | CP12: 3.6 | CQ12: 3.6 | CR12: 3.6 | CS12: 3.6 | CT12: 3.6 | CU12: 3.6 | CV12: 3.6 | CW12: 3.6 | CX12: 3.6 | CY12: 3.6 | CZ12: 3.6 | DA12: 3.6 | DB12: 3.6 | DC12: 3.6 | DD12: 3.6 | DE12: 3.6 | DF12: 3.6 | DG12: 3.3 | DH12: 3.9 | DI12: 3.4 | DJ12: 3.7 | DK12: 3.8 | DL12: 3.6 | DM12: 3.8 | DN12: 3.6 | DO12: 4 | DP12: 3.6 | DQ12: 3.8 | DR12: 3.7 | DS12: 3.7 | DT12: 3.6 | DU12: 3.7 | DV12: 3.8 | DW12: 3.7 | DX12: 3.7 | DY12: 3.8 | DZ12: 3.9 | EA12: 3.7 | EB12: 3.7 | EC12: 3.8 | ED12: 3.7 | EE12: 3.3 | EF12: 3.3 | EG12: 3.3 | EH12: 3.3 | EI12: 3.3 | EJ12: 3.3 | EK12: 3.3 | EL12: 3.3 | EM12: 3.3 | EN12: 3.3 | EO12: 2.9 | EP12: 2.9 | EQ12: 2.9 | ER12: 2.9 | ES12: 2.9 | ET12: 2.9 | EU12: 2.9 | EV12: 2.9 | EW12: 2.9 | EX12: 2.9 | EY12: 2.9 | EZ12: 2.9 | FA12: 2.9 | FB12: 2.9 | FC12: 2.9 | FD12: 2.9 | FE12: 2.9 | FF12: 2.9 | FG12: 3.3 | FH12: 3.3 | FI12: 3 | FJ12: 3 | FK12: 3 | FL12: 3 | FM12: 3 | FN12: 3 | FO12: 3 | FP12: 3 | FQ12: 3.4 | FR12: 3.4 | FS12: 3 | FT12: 3 | FU12: 3 | FV12: 3 | FW12: 3 | FX12: 3 | FY12: 3 | FZ12: 3 | GA12: 3 | GB12: 3 | GC12: 3 | GD12: 3 | GE12: 3 | GF12: 3.4 | GG12: 3.4 | GH12: 3 | GI12: 3 | GJ12: 3 | GK12: 3 | GL12: 3 | GM12: 3 | GN12: 3 | GO12: 3 | GP12: 3 | GQ12: 3 | GR12: 3 | GS12: 3 | GT12: 3 | GU12: 3 | GV12: 3 | GW12: 3 | GX12: 3 | GY12: 3.3 | GZ12: 3.3 | HA12: 3.3 | HB12: 3.3 | HC12: 3.3 | HD12: 3.3 | HE12: 3.3 | HF12: 3.3 | HG12: 3.3 | HH12: 3.3 | HI12: 3.3 | HJ12: 3.3 | HK12: 3.3 | HL12: 3.3 | HM12: 3.3
A13: 140812 | B13: Surrounded | D13: =(H*D+1.8*H*W+0.7*W*D)/1000000 -> 0.5238 | E13: =W*D/1000000*0.1 -> 0.0084 | G13: 2.9 | H13: 2.9 | I13: 2.9 | J13: 3.3 | K13: 3.3 | L13: 3.3 | M13: 3.3 | N13: 2.4 | O13: 2.4 | P13: 2.4 | Q13: 3 | R13: 3 | S13: 3 | T13: 3 | U13: 3.4 | V13: 3.4 | W13: 3.4 | X13: 3.4 | Y13: 3.4 | Z13: 3.4 | AA13: 3.4 | AB13: 3.4 | AC13: 3.1 | AD13: 3.1 | AE13: 3.1 | AF13: 3.1 | AG13: 3.1 | AH13: 3.1 | AI13: 3.1 | AJ13: 3.1 | AK13: 3.1 | AL13: 3.1 | AM13: 3.1 | AN13: 3.1 | AO13: 2.7 | AP13: 2.7 | AQ13: 2.7 | AR13: 2.7 | AS13: 2.7 | AT13: 3.1 | AU13: 3.1 | AV13: 3.6 | AW13: 3.6 | AX13: 3.6 | AY13: 3.6 | AZ13: 3.6 | BA13: 3.6 | BB13: 3.6 | BC13: 3.6 | BD13: 3.6 | BE13: 3.6 | BF13: 3.6 | BG13: 3.6 | BH13: 3.6 | BI13: 3.6 | BJ13: 3.6 | BK13: 3.6 | BL13: 3.6 | BM13: 3.6 | BN13: 3.6 | BO13: 3.6 | BP13: 3.6 | BQ13: 3.6 | BR13: 3.6 | BS13: 3.6 | BT13: 3.6 | BU13: 3.6 | BV13: 3.6 | BW13: 3.6 | BX13: 3.6 | BY13: 3.6 | BZ13: 3.6 | CA13: 3.6 | CB13: 3.6 | CC13: 3.6 | CD13: 3.6 | CE13: 3.6 | CF13: 3.6 | CG13: 3.6 | CH13: 3.6 | CI13: 3.6 | CJ13: 3.6 | CK13: 3.6 | CL13: 3.6 | CM13: 3.6 | CN13: 3.6 | CO13: 3.6 | CP13: 3.6 | CQ13: 3.6 | CR13: 3.6 | CS13: 3.6 | CT13: 3.6 | CU13: 3.6 | CV13: 3.6 | CW13: 3.6 | CX13: 3.6 | CY13: 3.6 | CZ13: 3.6 | DA13: 3.6 | DB13: 3.6 | DC13: 3.6 | DD13: 3.6 | DE13: 3.6 | DF13: 3.6 | DG13: 3.3 | DH13: 3.9 | DI13: 3.4 | DJ13: 3.7 | DK13: 3.8 | DL13: 3.6 | DM13: 3.8 | DN13: 3.6 | DO13: 4 | DP13: 3.6 | DQ13: 3.8 | DR13: 3.7 | DS13: 3.7 | DT13: 3.6 | DU13: 3.7 | DV13: 3.8 | DW13: 3.7 | DX13: 3.7 | DY13: 3.8 | DZ13: 3.9 | EA13: 3.7 | EB13: 3.7 | EC13: 3.8 | ED13: 3.7 | EE13: 3.3 | EF13: 3.3 | EG13: 3.3 | EH13: 3.3 | EI13: 3.3 | EJ13: 3.3 | EK13: 3.3 | EL13: 3.3 | EM13: 3.3 | EN13: 3.3 | EO13: 2.9 | EP13: 2.9 | EQ13: 2.9 | ER13: 2.9 | ES13: 2.9 | ET13: 2.9 | EU13: 2.9 | EV13: 2.9 | EW13: 2.9 | EX13: 2.9 | EY13: 2.9 | EZ13: 2.9 | FA13: 2.9 | FB13: 2.9 | FC13: 2.9 | FD13: 2.9 | FE13: 2.9 | FF13: 2.9 | FG13: 3.3 | FH13: 3.3 | FI13: 3.2 | FJ13: 3.2 | FK13: 3.2 | FL13: 3.2 | FM13: 3.2 | FN13: 3.2 | FO13: 3.2 | FP13: 3.2 | FQ13: 3.5 | FR13: 3.5 | FS13: 3.2 | FT13: 3.2 | FU13: 3.2 | FV13: 3.2 | FW13: 3.2 | FX13: 3.2 | FY13: 3.2 | FZ13: 3.2 | GA13: 3.2 | GB13: 3.2 | GC13: 3.2 | GD13: 3.2 | GE13: 3.2 | GF13: 3.5 | GG13: 3.5 | GH13: 3.2 | GI13: 3.2 | GJ13: 3.2 | GK13: 3.2 | GL13: 3.2 | GM13: 3.2 | GN13: 3.2 | GO13: 3.2 | GP13: 3.2 | GQ13: 3.2 | GR13: 3.2 | GS13: 3.2 | GT13: 3.2 | GU13: 3.2 | GV13: 3.2 | GW13: 3.2 | GX13: 3.2 | GY13: 3.3 | GZ13: 3.3 | HA13: 3.3 | HB13: 3.3 | HC13: 3.3 | HD13: 3.3 | HE13: 3.3 | HF13: 3.3 | HG13: 3.3 | HH13: 3.3 | HI13: 3.3 | HJ13: 3.3 | HK13: 3.3 | HL13: 3.3 | HM13: 3.3
A14: 130806 | D14: =(1.8*H*D+1.4*W*(H+D))/1000000 -> 0.5866 | E14: =W*D/1000000 -> 0.084 | G14: 3.1 | H14: 3.1 | I14: 3.1 | J14: 3.3 | K14: 3.3 | L14: 3.3 | M14: 3.3 | N14: 2.7 | O14: 2.7 | P14: 2.7 | Q14: 3 | R14: 3 | S14: 3 | T14: 3 | U14: 3.4 | V14: 3.4 | W14: 3.4 | X14: 3.4 | Y14: 3.4 | Z14: 3.4 | AA14: 3.4 | AB14: 3.4 | AC14: 3.1 | AD14: 3.1 | AE14: 3.1 | AF14: 3.1 | AG14: 3.1 | AH14: 3.1 | AI14: 3.1 | AJ14: 3.1 | AK14: 3.1 | AL14: 3.1 | AM14: 3.1 | AN14: 3.1 | AO14: 2.7 | AP14: 2.7 | AQ14: 2.7 | AR14: 2.7 | AS14: 2.7 | AT14: 3.1 | AU14: 3.1 | AV14: 3.6 | AW14: 3.6 | AX14: 3.6 | AY14: 3.6 | AZ14: 3.6 | BA14: 3.6 | BB14: 3.6 | BC14: 3.6 | BD14: 3.6 | BE14: 3.6 | BF14: 3.6 | BG14: 3.6 | BH14: 3.6 | BI14: 3.6 | BJ14: 3.6 | BK14: 3.6 | BL14: 3.6 | BM14: 3.6 | BN14: 3.6 | BO14: 3.6 | BP14: 3.6 | BQ14: 3.6 | BR14: 3.6 | BS14: 3.6 | BT14: 3.6 | BU14: 3.6 | BV14: 3.6 | BW14: 3.6 | BX14: 3.6 | BY14: 3.6 | BZ14: 3.6 | CA14: 3.6 | CB14: 3.6 | CC14: 3.6 | CD14: 3.6 | CE14: 3.6 | CF14: 3.6 | CG14: 3.6 | CH14: 3.6 | CI14: 3.6 | CJ14: 3.6 | CK14: 3.6 | CL14: 3.6 | CM14: 3.6 | CN14: 3.6 | CO14: 3.6 | CP14: 3.6 | CQ14: 3.6 | CR14: 3.6 | CS14: 3.6 | CT14: 3.6 | CU14: 3.6 | CV14: 3.6 | CW14: 3.6 | CX14: 3.6 | CY14: 3.6 | CZ14: 3.6 | DA14: 3.6 | DB14: 3.6 | DC14: 3.6 | DD14: 3.6 | DE14: 3.6 | DF14: 3.6 | DG14: 3.7 | DH14: 4 | DI14: 3.7 | DJ14: 3.8 | DK14: 3.6 | DL14: 3.7 | DM14: 3.7 | DN14: 3.8 | DO14: 3.6 | DP14: 3.8 | DQ14: 3.8 | DR14: 3.6 | DS14: 3.8 | DT14: 3.7 | DU14: 3.6 | DV14: 3.7 | DW14: 3.8 | DX14: 3.7 | DY14: 3.7 | DZ14: 3.8 | EA14: 3.6 | EB14: 3.6 | EC14: 3.7 | ED14: 3.7 | EE14: 3.3 | EF14: 3.3 | EG14: 3.3 | EH14: 3.3 | EI14: 3.3 | EJ14: 3.3 | EK14: 3.3 | EL14: 3.3 | EM14: 3.3 | EN14: 3.3 | EO14: 3.1 | EP14: 3.1 | EQ14: 3.1 | ER14: 3.1 | ES14: 3.1 | ET14: 3.1 | EU14: 3.1 | EV14: 3.1 | EW14: 3.1 | EX14: 3.1 | EY14: 3.1 | EZ14: 3.1 | FA14: 3.1 | FB14: 3.1 | FC14: 3.1 | FD14: 3.1 | FE14: 3.1 | FF14: 3.1 | FG14: 3.3 | FH14: 3.3 | FI14: 3.2 | FJ14: 3.2 | FK14: 3.2 | FL14: 3.2 | FM14: 3.2 | FN14: 3.2 | FO14: 3.2 | FP14: 3.2 | FQ14: 3.7 | FR14: 3.7 | FS14: 3.2 | FT14: 3.2 | FU14: 3.2 | FV14: 3.2 | FW14: 3.2 | FX14: 3.2 | FY14: 3.2 | FZ14: 3.2 | GA14: 3.2 | GB14: 3.2 | GC14: 3.2 | GD14: 3.2 | GE14: 3.2 | GF14: 3.7 | GG14: 3.7 | GH14: 3.2 | GI14: 3.2 | GJ14: 3.2 | GK14: 3.2 | GL14: 3.2 | GM14: 3.2 | GN14: 3.2 | GO14: 3.2 | GP14: 3.2 | GQ14: 3.2 | GR14: 3.2 | GS14: 3.2 | GT14: 3.2 | GU14: 3.2 | GV14: 3.2 | GW14: 3.2 | GX14: 3.2 | GY14: 3.3 | GZ14: 3.3 | HA14: 3.3 | HB14: 3.3 | HC14: 3.3 | HD14: 3.3 | HE14: 3.3 | HF14: 3.3 | HG14: 3.3 | HH14: 3.3 | HI14: 3.3 | HJ14: 3.3 | HK14: 3.3 | HL14: 3.3 | HM14: 3.3
A15: 130810 | D15: =(1.4*H*(W+D)+1.4*W*D)/1000000 -> 0.5446 | E15: =W*D/1000000 -> 0.084 | G15: 3.1 | H15: 3.1 | I15: 3.1 | J15: 3.3 | K15: 3.3 | L15: 3.3 | M15: 3.3 | N15: 2.7 | O15: 2.7 | P15: 2.7 | Q15: 3 | R15: 3 | S15: 3 | T15: 3 | U15: 3.4 | V15: 3.4 | W15: 3.4 | X15: 3.4 | Y15: 3.4 | Z15: 3.4 | AA15: 3.4 | AB15: 3.4 | AC15: 3.3 | AD15: 3.3 | AE15: 3.3 | AF15: 3.3 | AG15: 3.3 | AH15: 3.3 | AI15: 3.3 | AJ15: 3.3 | AK15: 3.3 | AL15: 3.3 | AM15: 3.3 | AN15: 3.3 | AO15: 2.7 | AP15: 2.7 | AQ15: 2.7 | AR15: 2.7 | AS15: 2.7 | AT15: 3.1 | AU15: 3.1 | AV15: 3.6 | AW15: 3.6 | AX15: 3.6 | AY15: 3.6 | AZ15: 3.6 | BA15: 3.6 | BB15: 3.6 | BC15: 3.6 | BD15: 3.6 | BE15: 3.6 | BF15: 3.6 | BG15: 3.6 | BH15: 3.6 | BI15: 3.6 | BJ15: 3.6 | BK15: 3.6 | BL15: 3.6 | BM15: 3.6 | BN15: 3.6 | BO15: 3.6 | BP15: 3.6 | BQ15: 3.6 | BR15: 3.6 | BS15: 3.6 | BT15: 3.6 | BU15: 3.6 | BV15: 3.6 | BW15: 3.6 | BX15: 3.6 | BY15: 3.6 | BZ15: 3.6 | CA15: 3.6 | CB15: 3.6 | CC15: 3.6 | CD15: 3.6 | CE15: 3.6 | CF15: 3.6 | CG15: 3.6 | CH15: 3.6 | CI15: 3.6 | CJ15: 3.6 | CK15: 3.6 | CL15: 3.6 | CM15: 3.6 | CN15: 3.6 | CO15: 3.6 | CP15: 3.6 | CQ15: 3.6 | CR15: 3.6 | CS15: 3.6 | CT15: 3.6 | CU15: 3.6 | CV15: 3.6 | CW15: 3.6 | CX15: 3.6 | CY15: 3.6 | CZ15: 3.6 | DA15: 3.6 | DB15: 3.6 | DC15: 3.6 | DD15: 3.6 | DE15: 3.6 | DF15: 3.6 | DG15: 3.9 | DH15: 3.5 | DI15: 3.7 | DJ15: 3.8 | DK15: 3.6 | DL15: 3.8 | DM15: 3.7 | DN15: 3.7 | DO15: 3.5 | DP15: 3.8 | DQ15: 3.6 | DR15: 3.7 | DS15: 3.8 | DT15: 3.6 | DU15: 3.7 | DV15: 3.8 | DW15: 3.5 | DX15: 3.7 | DY15: 3.7 | DZ15: 3.7 | EA15: 3.7 | EB15: 3.8 | EC15: 3.8 | ED15: 3.8 | EE15: 3.3 | EF15: 3.3 | EG15: 3.3 | EH15: 3.3 | EI15: 3.3 | EJ15: 3.3 | EK15: 3.3 | EL15: 3.3 | EM15: 3.3 | EN15: 3.3 | EO15: 3.1 | EP15: 3.1 | EQ15: 3.1 | ER15: 3.1 | ES15: 3.1 | ET15: 3.1 | EU15: 3.1 | EV15: 3.1 | EW15: 3.1 | EX15: 3.1 | EY15: 3.1 | EZ15: 3.1 | FA15: 3.1 | FB15: 3.1 | FC15: 3.1 | FD15: 3.1 | FE15: 3.1 | FF15: 3.1 | FG15: 3.3 | FH15: 3.3 | FI15: 3.4 | FJ15: 3.4 | FK15: 3.4 | FL15: 3.4 | FM15: 3.4 | FN15: 3.4 | FO15: 3.4 | FP15: 3.4 | FQ15: 3.7 | FR15: 3.7 | FS15: 3.4 | FT15: 3.4 | FU15: 3.4 | FV15: 3.4 | FW15: 3.4 | FX15: 3.4 | FY15: 3.4 | FZ15: 3.4 | GA15: 3.4 | GB15: 3.4 | GC15: 3.4 | GD15: 3.4 | GE15: 3.4 | GF15: 3.7 | GG15: 3.7 | GH15: 3.4 | GI15: 3.4 | GJ15: 3.4 | GK15: 3.4 | GL15: 3.4 | GM15: 3.4 | GN15: 3.4 | GO15: 3.4 | GP15: 3.4 | GQ15: 3.4 | GR15: 3.4 | GS15: 3.4 | GT15: 3.4 | GU15: 3.4 | GV15: 3.4 | GW15: 3.4 | GX15: 3.4 | GY15: 3.3 | GZ15: 3.3 | HA15: 3.3 | HB15: 3.3 | HC15: 3.3 | HD15: 3.3 | HE15: 3.3 | HF15: 3.3 | HG15: 3.3 | HH15: 3.3 | HI15: 3.3 | HJ15: 3.3 | HK15: 3.3 | HL15: 3.3 | HM15: 3.3
A16: 130813 | D16: =(H*D+1.4*W*(H+D))/1000000 -> 0.5026 | E16: =W*D/1000000 -> 0.084 | G16: 3.1 | H16: 3.1 | I16: 3.1 | J16: 3.3 | K16: 3.3 | L16: 3.3 | M16: 3.3 | N16: 2.7 | O16: 2.7 | P16: 2.7 | Q16: 3 | R16: 3 | S16: 3 | T16: 3 | U16: 3.4 | V16: 3.4 | W16: 3.4 | X16: 3.4 | Y16: 3.4 | Z16: 3.4 | AA16: 3.4 | AB16: 3.4 | AC16: 3.3 | AD16: 3.3 | AE16: 3.3 | AF16: 3.3 | AG16: 3.3 | AH16: 3.3 | AI16: 3.3 | AJ16: 3.3 | AK16: 3.3 | AL16: 3.3 | AM16: 3.3 | AN16: 3.3 | AO16: 2.7 | AP16: 2.7 | AQ16: 2.7 | AR16: 2.7 | AS16: 2.7 | AT16: 3.1 | AU16: 3.1 | AV16: 3.6 | AW16: 3.6 | AX16: 3.6 | AY16: 3.6 | AZ16: 3.6 | BA16: 3.6 | BB16: 3.6 | BC16: 3.6 | BD16: 3.6 | BE16: 3.6 | BF16: 3.6 | BG16: 3.6 | BH16: 3.6 | BI16: 3.6 | BJ16: 3.6 | BK16: 3.6 | BL16: 3.6 | BM16: 3.6 | BN16: 3.6 | BO16: 3.6 | BP16: 3.6 | BQ16: 3.6 | BR16: 3.6 | BS16: 3.6 | BT16: 3.6 | BU16: 3.6 | BV16: 3.6 | BW16: 3.6 | BX16: 3.6 | BY16: 3.6 | BZ16: 3.6 | CA16: 3.6 | CB16: 3.6 | CC16: 3.6 | CD16: 3.6 | CE16: 3.6 | CF16: 3.6 | CG16: 3.6 | CH16: 3.6 | CI16: 3.6 | CJ16: 3.6 | CK16: 3.6 | CL16: 3.6 | CM16: 3.6 | CN16: 3.6 | CO16: 3.6 | CP16: 3.6 | CQ16: 3.6 | CR16: 3.6 | CS16: 3.6 | CT16: 3.6 | CU16: 3.6 | CV16: 3.6 | CW16: 3.6 | CX16: 3.6 | CY16: 3.6 | CZ16: 3.6 | DA16: 3.6 | DB16: 3.6 | DC16: 3.6 | DD16: 3.6 | DE16: 3.6 | DF16: 3.6 | DG16: 3.8 | DH16: 3.7 | DI16: 3.6 | DJ16: 3.6 | DK16: 3.8 | DL16: 3.8 | DM16: 3.6 | DN16: 3.7 | DO16: 3.8 | DP16: 4 | DQ16: 3.6 | DR16: 3.7 | DS16: 3.7 | DT16: 3.7 | DU16: 3.8 | DV16: 3.6 | DW16: 3.4 | DX16: 3.7 | DY16: 3.5 | DZ16: 3.6 | EA16: 3.8 | EB16: 3.6 | EC16: 3.6 | ED16: 3.7 | EE16: 3.3 | EF16: 3.3 | EG16: 3.3 | EH16: 3.3 | EI16: 3.3 | EJ16: 3.3 | EK16: 3.3 | EL16: 3.3 | EM16: 3.3 | EN16: 3.3 | EO16: 3.1 | EP16: 3.1 | EQ16: 3.1 | ER16: 3.1 | ES16: 3.1 | ET16: 3.1 | EU16: 3.1 | EV16: 3.1 | EW16: 3.1 | EX16: 3.1 | EY16: 3.1 | EZ16: 3.1 | FA16: 3.1 | FB16: 3.1 | FC16: 3.1 | FD16: 3.1 | FE16: 3.1 | FF16: 3.1 | FG16: 3.3 | FH16: 3.3 | FI16: 3.5 | FJ16: 3.5 | FK16: 3.5 | FL16: 3.5 | FM16: 3.5 | FN16: 3.5 | FO16: 3.5 | FP16: 3.5 | FQ16: 3.6 | FR16: 3.6 | FS16: 3.5 | FT16: 3.5 | FU16: 3.5 | FV16: 3.5 | FW16: 3.5 | FX16: 3.5 | FY16: 3.5 | FZ16: 3.5 | GA16: 3.5 | GB16: 3.5 | GC16: 3.5 | GD16: 3.5 | GE16: 3.5 | GF16: 3.6 | GG16: 3.6 | GH16: 3.5 | GI16: 3.5 | GJ16: 3.5 | GK16: 3.5 | GL16: 3.5 | GM16: 3.5 | GN16: 3.5 | GO16: 3.5 | GP16: 3.5 | GQ16: 3.5 | GR16: 3.5 | GS16: 3.5 | GT16: 3.5 | GU16: 3.5 | GV16: 3.5 | GW16: 3.5 | GX16: 3.5 | GY16: 3.3 | GZ16: 3.3 | HA16: 3.3 | HB16: 3.3 | HC16: 3.3 | HD16: 3.3 | HE16: 3.3 | HF16: 3.3 | HG16: 3.3 | HH16: 3.3 | HI16: 3.3 | HJ16: 3.3 | HK16: 3.3 | HL16: 3.3 | HM16: 3.3
A17: 130811 | D17: =(1.8*H*D+1.4*H*W+0.7*W*D)/1000000 -> 0.5278 | E17: =W*D/1000000*0.15 -> 0.0126 | G17: 2.9 | H17: 2.9 | I17: 2.9 | J17: 3.3 | K17: 3.3 | L17: 3.3 | M17: 3.3 | N17: 2.4 | O17: 2.4 | P17: 2.4 | Q17: 3 | R17: 3 | S17: 3 | T17: 3 | U17: 3.4 | V17: 3.4 | W17: 3.4 | X17: 3.4 | Y17: 3.4 | Z17: 3.4 | AA17: 3.4 | AB17: 3.4 | AC17: 2.9 | AD17: 2.9 | AE17: 2.9 | AF17: 2.9 | AG17: 2.9 | AH17: 2.9 | AI17: 2.9 | AJ17: 2.9 | AK17: 2.9 | AL17: 2.9 | AM17: 2.9 | AN17: 2.9 | AO17: 2.7 | AP17: 2.7 | AQ17: 2.7 | AR17: 2.7 | AS17: 2.7 | AT17: 3.1 | AU17: 3.1 | AV17: 3.6 | AW17: 3.6 | AX17: 3.6 | AY17: 3.6 | AZ17: 3.6 | BA17: 3.6 | BB17: 3.6 | BC17: 3.6 | BD17: 3.6 | BE17: 3.6 | BF17: 3.6 | BG17: 3.6 | BH17: 3.6 | BI17: 3.6 | BJ17: 3.6 | BK17: 3.6 | BL17: 3.6 | BM17: 3.6 | BN17: 3.6 | BO17: 3.6 | BP17: 3.6 | BQ17: 3.6 | BR17: 3.6 | BS17: 3.6 | BT17: 3.6 | BU17: 3.6 | BV17: 3.6 | BW17: 3.6 | BX17: 3.6 | BY17: 3.6 | BZ17: 3.6 | CA17: 3.6 | CB17: 3.6 | CC17: 3.6 | CD17: 3.6 | CE17: 3.6 | CF17: 3.6 | CG17: 3.6 | CH17: 3.6 | CI17: 3.6 | CJ17: 3.6 | CK17: 3.6 | CL17: 3.6 | CM17: 3.6 | CN17: 3.6 | CO17: 3.6 | CP17: 3.6 | CQ17: 3.6 | CR17: 3.6 | CS17: 3.6 | CT17: 3.6 | CU17: 3.6 | CV17: 3.6 | CW17: 3.6 | CX17: 3.6 | CY17: 3.6 | CZ17: 3.6 | DA17: 3.6 | DB17: 3.6 | DC17: 3.6 | DD17: 3.6 | DE17: 3.6 | DF17: 3.6 | DG17: 3.3 | DH17: 3.9 | DI17: 3.4 | DJ17: 3.7 | DK17: 3.8 | DL17: 3.6 | DM17: 3.8 | DN17: 3.6 | DO17: 4 | DP17: 3.6 | DQ17: 3.8 | DR17: 3.7 | DS17: 3.7 | DT17: 3.6 | DU17: 3.7 | DV17: 3.8 | DW17: 3.7 | DX17: 3.7 | DY17: 3.8 | DZ17: 3.9 | EA17: 3.7 | EB17: 3.7 | EC17: 3.8 | ED17: 3.7 | EE17: 3.3 | EF17: 3.3 | EG17: 3.3 | EH17: 3.3 | EI17: 3.3 | EJ17: 3.3 | EK17: 3.3 | EL17: 3.3 | EM17: 3.3 | EN17: 3.3 | EO17: 2.9 | EP17: 2.9 | EQ17: 2.9 | ER17: 2.9 | ES17: 2.9 | ET17: 2.9 | EU17: 2.9 | EV17: 2.9 | EW17: 2.9 | EX17: 2.9 | EY17: 2.9 | EZ17: 2.9 | FA17: 2.9 | FB17: 2.9 | FC17: 2.9 | FD17: 2.9 | FE17: 2.9 | FF17: 2.9 | FG17: 3.3 | FH17: 3.3 | FI17: 3 | FJ17: 3 | FK17: 3 | FL17: 3 | FM17: 3 | FN17: 3 | FO17: 3 | FP17: 3 | FQ17: 3.4 | FR17: 3.4 | FS17: 3 | FT17: 3 | FU17: 3 | FV17: 3 | FW17: 3 | FX17: 3 | FY17: 3 | FZ17: 3 | GA17: 3 | GB17: 3 | GC17: 3 | GD17: 3 | GE17: 3 | GF17: 3.4 | GG17: 3.4 | GH17: 3 | GI17: 3 | GJ17: 3 | GK17: 3 | GL17: 3 | GM17: 3 | GN17: 3 | GO17: 3 | GP17: 3 | GQ17: 3 | GR17: 3 | GS17: 3 | GT17: 3 | GU17: 3 | GV17: 3 | GW17: 3 | GX17: 3 | GY17: 3.3 | GZ17: 3.3 | HA17: 3.3 | HB17: 3.3 | HC17: 3.3 | HD17: 3.3 | HE17: 3.3 | HF17: 3.3 | HG17: 3.3 | HH17: 3.3 | HI17: 3.3 | HJ17: 3.3 | HK17: 3.3 | HL17: 3.3 | HM17: 3.3
A18: 130814 | D18: =(1.8*H*D+1.4*W*(H+D))/1000000 -> 0.5866 | E18: =W*D/1000000 -> 0.084 | G18: 3.1 | H18: 3.1 | I18: 3.1 | J18: 3.3 | K18: 3.3 | L18: 3.3 | M18: 3.3 | N18: 2.7 | O18: 2.7 | P18: 2.7 | Q18: 3 | R18: 3 | S18: 3 | T18: 3 | U18: 3.4 | V18: 3.4 | W18: 3.4 | X18: 3.4 | Y18: 3.4 | Z18: 3.4 | AA18: 3.4 | AB18: 3.4 | AC18: 3.1 | AD18: 3.1 | AE18: 3.1 | AF18: 3.1 | AG18: 3.1 | AH18: 3.1 | AI18: 3.1 | AJ18: 3.1 | AK18: 3.1 | AL18: 3.1 | AM18: 3.1 | AN18: 3.1 | AO18: 2.7 | AP18: 2.7 | AQ18: 2.7 | AR18: 2.7 | AS18: 2.7 | AT18: 3.1 | AU18: 3.1 | AV18: 3.6 | AW18: 3.6 | AX18: 3.6 | AY18: 3.6 | AZ18: 3.6 | BA18: 3.6 | BB18: 3.6 | BC18: 3.6 | BD18: 3.6 | BE18: 3.6 | BF18: 3.6 | BG18: 3.6 | BH18: 3.6 | BI18: 3.6 | BJ18: 3.6 | BK18: 3.6 | BL18: 3.6 | BM18: 3.6 | BN18: 3.6 | BO18: 3.6 | BP18: 3.6 | BQ18: 3.6 | BR18: 3.6 | BS18: 3.6 | BT18: 3.6 | BU18: 3.6 | BV18: 3.6 | BW18: 3.6 | BX18: 3.6 | BY18: 3.6 | BZ18: 3.6 | CA18: 3.6 | CB18: 3.6 | CC18: 3.6 | CD18: 3.6 | CE18: 3.6 | CF18: 3.6 | CG18: 3.6 | CH18: 3.6 | CI18: 3.6 | CJ18: 3.6 | CK18: 3.6 | CL18: 3.6 | CM18: 3.6 | CN18: 3.6 | CO18: 3.6 | CP18: 3.6 | CQ18: 3.6 | CR18: 3.6 | CS18: 3.6 | CT18: 3.6 | CU18: 3.6 | CV18: 3.6 | CW18: 3.6 | CX18: 3.6 | CY18: 3.6 | CZ18: 3.6 | DA18: 3.6 | DB18: 3.6 | DC18: 3.6 | DD18: 3.6 | DE18: 3.6 | DF18: 3.6 | DG18: 3.7 | DH18: 3.5 | DI18: 3.6 | DJ18: 3.6 | DK18: 3.6 | DL18: 3.7 | DM18: 3.6 | DN18: 3.7 | DO18: 3.5 | DP18: 3.8 | DQ18: 3.6 | DR18: 3.6 | DS18: 3.7 | DT18: 3.6 | DU18: 3.6 | DV18: 3.6 | DW18: 3.4 | DX18: 3.7 | DY18: 3.5 | DZ18: 3.6 | EA18: 3.6 | EB18: 3.6 | EC18: 3.6 | ED18: 3.7 | EE18: 3.3 | EF18: 3.3 | EG18: 3.3 | EH18: 3.3 | EI18: 3.3 | EJ18: 3.3 | EK18: 3.3 | EL18: 3.3 | EM18: 3.3 | EN18: 3.3 | EO18: 3.1 | EP18: 3.1 | EQ18: 3.1 | ER18: 3.1 | ES18: 3.1 | ET18: 3.1 | EU18: 3.1 | EV18: 3.1 | EW18: 3.1 | EX18: 3.1 | EY18: 3.1 | EZ18: 3.1 | FA18: 3.1 | FB18: 3.1 | FC18: 3.1 | FD18: 3.1 | FE18: 3.1 | FF18: 3.1 | FG18: 3.3 | FH18: 3.3 | FI18: 3.2 | FJ18: 3.2 | FK18: 3.2 | FL18: 3.2 | FM18: 3.2 | FN18: 3.2 | FO18: 3.2 | FP18: 3.2 | FQ18: 3.7 | FR18: 3.7 | FS18: 3.2 | FT18: 3.2 | FU18: 3.2 | FV18: 3.2 | FW18: 3.2 | FX18: 3.2 | FY18: 3.2 | FZ18: 3.2 | GA18: 3.2 | GB18: 3.2 | GC18: 3.2 | GD18: 3.2 | GE18: 3.2 | GF18: 3.7 | GG18: 3.7 | GH18: 3.2 | GI18: 3.2 | GJ18: 3.2 | GK18: 3.2 | GL18: 3.2 | GM18: 3.2 | GN18: 3.2 | GO18: 3.2 | GP18: 3.2 | GQ18: 3.2 | GR18: 3.2 | GS18: 3.2 | GT18: 3.2 | GU18: 3.2 | GV18: 3.2 | GW18: 3.2 | GX18: 3.2 | GY18: 3.3 | GZ18: 3.3 | HA18: 3.3 | HB18: 3.3 | HC18: 3.3 | HD18: 3.3 | HE18: 3.3 | HF18: 3.3 | HG18: 3.3 | HH18: 3.3 | HI18: 3.3 | HJ18: 3.3 | HK18: 3.3 | HL18: 3.3 | HM18: 3.3
A19: 130820 | D19: =(1.8*H*D+1.4*H*W+0.7*W*D)/1000000 -> 0.5278 | E19: =W*D/1000000*0.15 -> 0.0126 | G19: 2.9 | H19: 2.9 | I19: 2.9 | J19: 3.3 | K19: 3.3 | L19: 3.3 | M19: 3.3 | N19: 2.4 | O19: 2.4 | P19: 2.4 | Q19: 3 | R19: 3 | S19: 3 | T19: 3 | U19: 3.4 | V19: 3.4 | W19: 3.4 | X19: 3.4 | Y19: 3.4 | Z19: 3.4 | AA19: 3.4 | AB19: 3.4 | AC19: 2.9 | AD19: 2.9 | AE19: 2.9 | AF19: 2.9 | AG19: 2.9 | AH19: 2.9 | AI19: 2.9 | AJ19: 2.9 | AK19: 2.9 | AL19: 2.9 | AM19: 2.9 | AN19: 2.9 | AO19: 2.7 | AP19: 2.7 | AQ19: 2.7 | AR19: 2.7 | AS19: 2.7 | AT19: 3.1 | AU19: 3.1 | AV19: 3.6 | AW19: 3.6 | AX19: 3.6 | AY19: 3.6 | AZ19: 3.6 | BA19: 3.6 | BB19: 3.6 | BC19: 3.6 | BD19: 3.6 | BE19: 3.6 | BF19: 3.6 | BG19: 3.6 | BH19: 3.6 | BI19: 3.6 | BJ19: 3.6 | BK19: 3.6 | BL19: 3.6 | BM19: 3.6 | BN19: 3.6 | BO19: 3.6 | BP19: 3.6 | BQ19: 3.6 | BR19: 3.6 | BS19: 3.6 | BT19: 3.6 | BU19: 3.6 | BV19: 3.6 | BW19: 3.6 | BX19: 3.6 | BY19: 3.6 | BZ19: 3.6 | CA19: 3.6 | CB19: 3.6 | CC19: 3.6 | CD19: 3.6 | CE19: 3.6 | CF19: 3.6 | CG19: 3.6 | CH19: 3.6 | CI19: 3.6 | CJ19: 3.6 | CK19: 3.6 | CL19: 3.6 | CM19: 3.6 | CN19: 3.6 | CO19: 3.6 | CP19: 3.6 | CQ19: 3.6 | CR19: 3.6 | CS19: 3.6 | CT19: 3.6 | CU19: 3.6 | CV19: 3.6 | CW19: 3.6 | CX19: 3.6 | CY19: 3.6 | CZ19: 3.6 | DA19: 3.6 | DB19: 3.6 | DC19: 3.6 | DD19: 3.6 | DE19: 3.6 | DF19: 3.6 | DG19: 3.3 | DH19: 3.9 | DI19: 3.4 | DJ19: 3.7 | DK19: 3.8 | DL19: 3.6 | DM19: 3.8 | DN19: 3.6 | DO19: 4 | DP19: 3.6 | DQ19: 3.8 | DR19: 3.7 | DS19: 3.7 | DT19: 3.6 | DU19: 3.7 | DV19: 3.8 | DW19: 3.7 | DX19: 3.7 | DY19: 3.8 | DZ19: 3.9 | EA19: 3.7 | EB19: 3.7 | EC19: 3.8 | ED19: 3.7 | EE19: 3.3 | EF19: 3.3 | EG19: 3.3 | EH19: 3.3 | EI19: 3.3 | EJ19: 3.3 | EK19: 3.3 | EL19: 3.3 | EM19: 3.3 | EN19: 3.3 | EO19: 2.9 | EP19: 2.9 | EQ19: 2.9 | ER19: 2.9 | ES19: 2.9 | ET19: 2.9 | EU19: 2.9 | EV19: 2.9 | EW19: 2.9 | EX19: 2.9 | EY19: 2.9 | EZ19: 2.9 | FA19: 2.9 | FB19: 2.9 | FC19: 2.9 | FD19: 2.9 | FE19: 2.9 | FF19: 2.9 | FG19: 3.3 | FH19: 3.3 | FI19: 3 | FJ19: 3 | FK19: 3 | FL19: 3 | FM19: 3 | FN19: 3 | FO19: 3 | FP19: 3 | FQ19: 3.4 | FR19: 3.4 | FS19: 3 | FT19: 3 | FU19: 3 | FV19: 3 | FW19: 3 | FX19: 3 | FY19: 3 | FZ19: 3 | GA19: 3 | GB19: 3 | GC19: 3 | GD19: 3 | GE19: 3 | GF19: 3.4 | GG19: 3.4 | GH19: 3 | GI19: 3 | GJ19: 3 | GK19: 3 | GL19: 3 | GM19: 3 | GN19: 3 | GO19: 3 | GP19: 3 | GQ19: 3 | GR19: 3 | GS19: 3 | GT19: 3 | GU19: 3 | GV19: 3 | GW19: 3 | GX19: 3 | GY19: 3.3 | GZ19: 3.3 | HA19: 3.3 | HB19: 3.3 | HC19: 3.3 | HD19: 3.3 | HE19: 3.3 | HF19: 3.3 | HG19: 3.3 | HH19: 3.3 | HI19: 3.3 | HJ19: 3.3 | HK19: 3.3 | HL19: 3.3 | HM19: 3.3
A20: 130812 | D20: =(0.7*W*D+H*D+1.4*H*W)/1000000 -> 0.4438 | E20: =W*D/1000000*0.1 -> 0.0084 | G20: 2.9 | H20: 2.9 | I20: 2.9 | J20: 3.3 | K20: 3.3 | L20: 3.3 | M20: 3.3 | N20: 2.4 | O20: 2.4 | P20: 2.4 | Q20: 3 | R20: 3 | S20: 3 | T20: 3 | U20: 3.4 | V20: 3.4 | W20: 3.4 | X20: 3.4 | Y20: 3.4 | Z20: 3.4 | AA20: 3.4 | AB20: 3.4 | AC20: 3.1 | AD20: 3.1 | AE20: 3.1 | AF20: 3.1 | AG20: 3.1 | AH20: 3.1 | AI20: 3.1 | AJ20: 3.1 | AK20: 3.1 | AL20: 3.1 | AM20: 3.1 | AN20: 3.1 | AO20: 2.7 | AP20: 2.7 | AQ20: 2.7 | AR20: 2.7 | AS20: 2.7 | AT20: 3.1 | AU20: 3.1 | AV20: 3.6 | AW20: 3.6 | AX20: 3.6 | AY20: 3.6 | AZ20: 3.6 | BA20: 3.6 | BB20: 3.6 | BC20: 3.6 | BD20: 3.6 | BE20: 3.6 | BF20: 3.6 | BG20: 3.6 | BH20: 3.6 | BI20: 3.6 | BJ20: 3.6 | BK20: 3.6 | BL20: 3.6 | BM20: 3.6 | BN20: 3.6 | BO20: 3.6 | BP20: 3.6 | BQ20: 3.6 | BR20: 3.6 | BS20: 3.6 | BT20: 3.6 | BU20: 3.6 | BV20: 3.6 | BW20: 3.6 | BX20: 3.6 | BY20: 3.6 | BZ20: 3.6 | CA20: 3.6 | CB20: 3.6 | CC20: 3.6 | CD20: 3.6 | CE20: 3.6 | CF20: 3.6 | CG20: 3.6 | CH20: 3.6 | CI20: 3.6 | CJ20: 3.6 | CK20: 3.6 | CL20: 3.6 | CM20: 3.6 | CN20: 3.6 | CO20: 3.6 | CP20: 3.6 | CQ20: 3.6 | CR20: 3.6 | CS20: 3.6 | CT20: 3.6 | CU20: 3.6 | CV20: 3.6 | CW20: 3.6 | CX20: 3.6 | CY20: 3.6 | CZ20: 3.6 | DA20: 3.6 | DB20: 3.6 | DC20: 3.6 | DD20: 3.6 | DE20: 3.6 | DF20: 3.6 | DG20: 3.3 | DH20: 3.9 | DI20: 3.4 | DJ20: 3.7 | DK20: 3.8 | DL20: 3.6 | DM20: 3.8 | DN20: 3.6 | DO20: 4 | DP20: 3.6 | DQ20: 3.8 | DR20: 3.7 | DS20: 3.7 | DT20: 3.6 | DU20: 3.7 | DV20: 3.8 | DW20: 3.7 | DX20: 3.7 | DY20: 3.8 | DZ20: 3.9 | EA20: 3.7 | EB20: 3.7 | EC20: 3.8 | ED20: 3.7 | EE20: 3.3 | EF20: 3.3 | EG20: 3.3 | EH20: 3.3 | EI20: 3.3 | EJ20: 3.3 | EK20: 3.3 | EL20: 3.3 | EM20: 3.3 | EN20: 3.3 | EO20: 2.9 | EP20: 2.9 | EQ20: 2.9 | ER20: 2.9 | ES20: 2.9 | ET20: 2.9 | EU20: 2.9 | EV20: 2.9 | EW20: 2.9 | EX20: 2.9 | EY20: 2.9 | EZ20: 2.9 | FA20: 2.9 | FB20: 2.9 | FC20: 2.9 | FD20: 2.9 | FE20: 2.9 | FF20: 2.9 | FG20: 3.3 | FH20: 3.3 | FI20: 3.2 | FJ20: 3.2 | FK20: 3.2 | FL20: 3.2 | FM20: 3.2 | FN20: 3.2 | FO20: 3.2 | FP20: 3.2 | FQ20: 3.5 | FR20: 3.5 | FS20: 3.2 | FT20: 3.2 | FU20: 3.2 | FV20: 3.2 | FW20: 3.2 | FX20: 3.2 | FY20: 3.2 | FZ20: 3.2 | GA20: 3.2 | GB20: 3.2 | GC20: 3.2 | GD20: 3.2 | GE20: 3.2 | GF20: 3.5 | GG20: 3.5 | GH20: 3.2 | GI20: 3.2 | GJ20: 3.2 | GK20: 3.2 | GL20: 3.2 | GM20: 3.2 | GN20: 3.2 | GO20: 3.2 | GP20: 3.2 | GQ20: 3.2 | GR20: 3.2 | GS20: 3.2 | GT20: 3.2 | GU20: 3.2 | GV20: 3.2 | GW20: 3.2 | GX20: 3.2 | GY20: 3.3 | GZ20: 3.3 | HA20: 3.3 | HB20: 3.3 | HC20: 3.3 | HD20: 3.3 | HE20: 3.3 | HF20: 3.3 | HG20: 3.3 | HH20: 3.3 | HI20: 3.3 | HJ20: 3.3 | HK20: 3.3 | HL20: 3.3 | HM20: 3.3
A21: 141006 | D21: =(1.8*W*(H+D)+1.4*H*D)/1000000 -> 0.6582 | E21: =H*D/1000000 -> 0.105 | G21: 3.3 | H21: 3.3 | I21: 3.3 | J21: 3.5 | K21: 3.5 | L21: 3.5 | M21: 3.5 | N21: 2.9 | O21: 2.9 | P21: 2.9 | Q21: 3.2 | R21: 3.2 | S21: 3.2 | T21: 3.2 | U21: 3.4 | V21: 3.4 | W21: 3.4 | X21: 3.4 | Y21: 3.4 | Z21: 3.4 | AA21: 3.4 | AB21: 3.4 | AC21: 3.3 | AD21: 3.3 | AE21: 3.3 | AF21: 3.3 | AG21: 3.3 | AH21: 3.3 | AI21: 3.3 | AJ21: 3.3 | AK21: 3.3 | AL21: 3.3 | AM21: 3.3 | AN21: 3.3 | AO21: 2.7 | AP21: 2.7 | AQ21: 2.7 | AR21: 2.7 | AS21: 2.7 | AT21: 3.1 | AU21: 3.1 | AV21: 3.6 | AW21: 3.6 | AX21: 3.6 | AY21: 3.6 | AZ21: 3.6 | BA21: 3.6 | BB21: 3.6 | BC21: 3.6 | BD21: 3.6 | BE21: 3.6 | BF21: 3.6 | BG21: 3.6 | BH21: 3.6 | BI21: 3.6 | BJ21: 3.6 | BK21: 3.6 | BL21: 3.6 | BM21: 3.6 | BN21: 3.6 | BO21: 3.6 | BP21: 3.6 | BQ21: 3.6 | BR21: 3.6 | BS21: 3.6 | BT21: 3.6 | BU21: 3.6 | BV21: 3.6 | BW21: 3.6 | BX21: 3.6 | BY21: 3.6 | BZ21: 3.6 | CA21: 3.6 | CB21: 3.6 | CC21: 3.6 | CD21: 3.6 | CE21: 3.6 | CF21: 3.6 | CG21: 3.6 | CH21: 3.6 | CI21: 3.6 | CJ21: 3.6 | CK21: 3.6 | CL21: 3.6 | CM21: 3.6 | CN21: 3.6 | CO21: 3.6 | CP21: 3.6 | CQ21: 3.6 | CR21: 3.6 | CS21: 3.6 | CT21: 3.6 | CU21: 3.6 | CV21: 3.6 | CW21: 3.6 | CX21: 3.6 | CY21: 3.6 | CZ21: 3.6 | DA21: 3.6 | DB21: 3.6 | DC21: 3.6 | DD21: 3.6 | DE21: 3.6 | DF21: 3.6 | DG21: 3.7 | DH21: 3.5 | DI21: 3.6 | DJ21: 3.6 | DK21: 3.6 | DL21: 3.7 | DM21: 3.6 | DN21: 3.7 | DO21: 3.5 | DP21: 3.8 | DQ21: 3.6 | DR21: 3.6 | DS21: 3.7 | DT21: 3.6 | DU21: 3.6 | DV21: 3.6 | DW21: 3.4 | DX21: 3.7 | DY21: 3.5 | DZ21: 3.6 | EA21: 3.6 | EB21: 3.6 | EC21: 3.6 | ED21: 3.7 | EE21: 3.3 | EF21: 3.3 | EG21: 3.3 | EH21: 3.3 | EI21: 3.3 | EJ21: 3.3 | EK21: 3.3 | EL21: 3.3 | EM21: 3.3 | EN21: 3.3 | EO21: 3.3 | EP21: 3.3 | EQ21: 3.3 | ER21: 3.3 | ES21: 3.3 | ET21: 3.3 | EU21: 3.3 | EV21: 3.3 | EW21: 3.3 | EX21: 3.3 | EY21: 3.3 | EZ21: 3.3 | FA21: 3.3 | FB21: 3.3 | FC21: 3.3 | FD21: 3.3 | FE21: 3.3 | FF21: 3.3 | FG21: 3.5 | FH21: 3.5 | FI21: 3.2 | FJ21: 3.2 | FK21: 3.2 | FL21: 3.2 | FM21: 3.2 | FN21: 3.2 | FO21: 3.2 | FP21: 3.2 | FQ21: 3.7 | FR21: 3.7 | FS21: 3.2 | FT21: 3.2 | FU21: 3.2 | FV21: 3.2 | FW21: 3.2 | FX21: 3.2 | FY21: 3.2 | FZ21: 3.2 | GA21: 3.2 | GB21: 3.2 | GC21: 3.2 | GD21: 3.2 | GE21: 3.2 | GF21: 3.7 | GG21: 3.7 | GH21: 3.2 | GI21: 3.2 | GJ21: 3.2 | GK21: 3.2 | GL21: 3.2 | GM21: 3.2 | GN21: 3.2 | GO21: 3.2 | GP21: 3.2 | GQ21: 3.2 | GR21: 3.2 | GS21: 3.2 | GT21: 3.2 | GU21: 3.2 | GV21: 3.2 | GW21: 3.2 | GX21: 3.2 | GY21: 3.3 | GZ21: 3.3 | HA21: 3.3 | HB21: 3.3 | HC21: 3.3 | HD21: 3.3 | HE21: 3.3 | HF21: 3.3 | HG21: 3.3 | HH21: 3.3 | HI21: 3.3 | HJ21: 3.3 | HK21: 3.3 | HL21: 3.3 | HM21: 3.3
A22: 141010 | D22: =(1.8*H*W+1.4*D*(H+W))/1000000 -> 0.6246 | E22: =H*D/1000000 -> 0.105 | G22: 3.3 | H22: 3.3 | I22: 3.3 | J22: 3.5 | K22: 3.5 | L22: 3.5 | M22: 3.5 | N22: 2.9 | O22: 2.9 | P22: 2.9 | Q22: 3.2 | R22: 3.2 | S22: 3.2 | T22: 3.2 | U22: 3.4 | V22: 3.4 | W22: 3.4 | X22: 3.4 | Y22: 3.4 | Z22: 3.4 | AA22: 3.4 | AB22: 3.4 | AC22: 3.1 | AD22: 3.1 | AE22: 3.1 | AF22: 3.1 | AG22: 3.1 | AH22: 3.1 | AI22: 3.1 | AJ22: 3.1 | AK22: 3.1 | AL22: 3.1 | AM22: 3.1 | AN22: 3.1 | AO22: 2.7 | AP22: 2.7 | AQ22: 2.7 | AR22: 2.7 | AS22: 2.7 | AT22: 3.1 | AU22: 3.1 | AV22: 3.6 | AW22: 3.6 | AX22: 3.6 | AY22: 3.6 | AZ22: 3.6 | BA22: 3.6 | BB22: 3.6 | BC22: 3.6 | BD22: 3.6 | BE22: 3.6 | BF22: 3.6 | BG22: 3.6 | BH22: 3.6 | BI22: 3.6 | BJ22: 3.6 | BK22: 3.6 | BL22: 3.6 | BM22: 3.6 | BN22: 3.6 | BO22: 3.6 | BP22: 3.6 | BQ22: 3.6 | BR22: 3.6 | BS22: 3.6 | BT22: 3.6 | BU22: 3.6 | BV22: 3.6 | BW22: 3.6 | BX22: 3.6 | BY22: 3.6 | BZ22: 3.6 | CA22: 3.6 | CB22: 3.6 | CC22: 3.6 | CD22: 3.6 | CE22: 3.6 | CF22: 3.6 | CG22: 3.6 | CH22: 3.6 | CI22: 3.6 | CJ22: 3.6 | CK22: 3.6 | CL22: 3.6 | CM22: 3.6 | CN22: 3.6 | CO22: 3.6 | CP22: 3.6 | CQ22: 3.6 | CR22: 3.6 | CS22: 3.6 | CT22: 3.6 | CU22: 3.6 | CV22: 3.6 | CW22: 3.6 | CX22: 3.6 | CY22: 3.6 | CZ22: 3.6 | DA22: 3.6 | DB22: 3.6 | DC22: 3.6 | DD22: 3.6 | DE22: 3.6 | DF22: 3.6 | DG22: 3.7 | DH22: 3.5 | DI22: 3.6 | DJ22: 3.6 | DK22: 3.6 | DL22: 3.7 | DM22: 3.6 | DN22: 3.7 | DO22: 3.5 | DP22: 3.8 | DQ22: 3.6 | DR22: 3.6 | DS22: 3.7 | DT22: 3.6 | DU22: 3.6 | DV22: 3.6 | DW22: 3.4 | DX22: 3.7 | DY22: 3.5 | DZ22: 3.6 | EA22: 3.6 | EB22: 3.6 | EC22: 3.6 | ED22: 3.7 | EE22: 3.3 | EF22: 3.3 | EG22: 3.3 | EH22: 3.3 | EI22: 3.3 | EJ22: 3.3 | EK22: 3.3 | EL22: 3.3 | EM22: 3.3 | EN22: 3.3 | EO22: 3.3 | EP22: 3.3 | EQ22: 3.3 | ER22: 3.3 | ES22: 3.3 | ET22: 3.3 | EU22: 3.3 | EV22: 3.3 | EW22: 3.3 | EX22: 3.3 | EY22: 3.3 | EZ22: 3.3 | FA22: 3.3 | FB22: 3.3 | FC22: 3.3 | FD22: 3.3 | FE22: 3.3 | FF22: 3.3 | FG22: 3.5 | FH22: 3.5 | FI22: 3.3 | FJ22: 3.3 | FK22: 3.3 | FL22: 3.3 | FM22: 3.3 | FN22: 3.3 | FO22: 3.3 | FP22: 3.3 | FQ22: 3.7 | FR22: 3.7 | FS22: 3.3 | FT22: 3.3 | FU22: 3.3 | FV22: 3.3 | FW22: 3.3 | FX22: 3.3 | FY22: 3.3 | FZ22: 3.3 | GA22: 3.3 | GB22: 3.3 | GC22: 3.3 | GD22: 3.3 | GE22: 3.3 | GF22: 3.7 | GG22: 3.7 | GH22: 3.3 | GI22: 3.3 | GJ22: 3.3 | GK22: 3.3 | GL22: 3.3 | GM22: 3.3 | GN22: 3.3 | GO22: 3.3 | GP22: 3.3 | GQ22: 3.3 | GR22: 3.3 | GS22: 3.3 | GT22: 3.3 | GU22: 3.3 | GV22: 3.3 | GW22: 3.3 | GX22: 3.3 | GY22: 3.3 | GZ22: 3.3 | HA22: 3.3 | HB22: 3.3 | HC22: 3.3 | HD22: 3.3 | HE22: 3.3 | HF22: 3.3 | HG22: 3.3 | HH22: 3.3 | HI22: 3.3 | HJ22: 3.3 | HK22: 3.3 | HL22: 3.3 | HM22: 3.3
A23: 141013 | D23: =(1.8*H*W+W*D+1.4*H*D)/1000000 -> 0.591 | E23: =H*D/1000000 -> 0.105 | G23: 3.3 | H23: 3.3 | I23: 3.3 | J23: 3.5 | K23: 3.5 | L23: 3.5 | M23: 3.5 | N23: 2.9 | O23: 2.9 | P23: 2.9 | Q23: 3.2 | R23: 3.2 | S23: 3.2 | T23: 3.2 | U23: 3.4 | V23: 3.4 | W23: 3.4 | X23: 3.4 | Y23: 3.4 | Z23: 3.4 | AA23: 3.4 | AB23: 3.4 | AC23: 3.1 | AD23: 3.1 | AE23: 3.1 | AF23: 3.1 | AG23: 3.1 | AH23: 3.1 | AI23: 3.1 | AJ23: 3.1 | AK23: 3.1 | AL23: 3.1 | AM23: 3.1 | AN23: 3.1 | AO23: 2.7 | AP23: 2.7 | AQ23: 2.7 | AR23: 2.7 | AS23: 2.7 | AT23: 3.1 | AU23: 3.1 | AV23: 3.6 | AW23: 3.6 | AX23: 3.6 | AY23: 3.6 | AZ23: 3.6 | BA23: 3.6 | BB23: 3.6 | BC23: 3.6 | BD23: 3.6 | BE23: 3.6 | BF23: 3.6 | BG23: 3.6 | BH23: 3.6 | BI23: 3.6 | BJ23: 3.6 | BK23: 3.6 | BL23: 3.6 | BM23: 3.6 | BN23: 3.6 | BO23: 3.6 | BP23: 3.6 | BQ23: 3.6 | BR23: 3.6 | BS23: 3.6 | BT23: 3.6 | BU23: 3.6 | BV23: 3.6 | BW23: 3.6 | BX23: 3.6 | BY23: 3.6 | BZ23: 3.6 | CA23: 3.6 | CB23: 3.6 | CC23: 3.6 | CD23: 3.6 | CE23: 3.6 | CF23: 3.6 | CG23: 3.6 | CH23: 3.6 | CI23: 3.6 | CJ23: 3.6 | CK23: 3.6 | CL23: 3.6 | CM23: 3.6 | CN23: 3.6 | CO23: 3.6 | CP23: 3.6 | CQ23: 3.6 | CR23: 3.6 | CS23: 3.6 | CT23: 3.6 | CU23: 3.6 | CV23: 3.6 | CW23: 3.6 | CX23: 3.6 | CY23: 3.6 | CZ23: 3.6 | DA23: 3.6 | DB23: 3.6 | DC23: 3.6 | DD23: 3.6 | DE23: 3.6 | DF23: 3.6 | DG23: 3.7 | DH23: 3.5 | DI23: 3.6 | DJ23: 3.6 | DK23: 3.6 | DL23: 3.7 | DM23: 3.6 | DN23: 3.7 | DO23: 3.5 | DP23: 3.8 | DQ23: 3.6 | DR23: 3.6 | DS23: 3.7 | DT23: 3.6 | DU23: 3.6 | DV23: 3.6 | DW23: 3.4 | DX23: 3.7 | DY23: 3.5 | DZ23: 3.6 | EA23: 3.6 | EB23: 3.6 | EC23: 3.6 | ED23: 3.7 | EE23: 3.3 | EF23: 3.3 | EG23: 3.3 | EH23: 3.3 | EI23: 3.3 | EJ23: 3.3 | EK23: 3.3 | EL23: 3.3 | EM23: 3.3 | EN23: 3.3 | EO23: 3.3 | EP23: 3.3 | EQ23: 3.3 | ER23: 3.3 | ES23: 3.3 | ET23: 3.3 | EU23: 3.3 | EV23: 3.3 | EW23: 3.3 | EX23: 3.3 | EY23: 3.3 | EZ23: 3.3 | FA23: 3.3 | FB23: 3.3 | FC23: 3.3 | FD23: 3.3 | FE23: 3.3 | FF23: 3.3 | FG23: 3.5 | FH23: 3.5 | FI23: 3.4 | FJ23: 3.4 | FK23: 3.4 | FL23: 3.4 | FM23: 3.4 | FN23: 3.4 | FO23: 3.4 | FP23: 3.4 | FQ23: 3.7 | FR23: 3.7 | FS23: 3.4 | FT23: 3.4 | FU23: 3.4 | FV23: 3.4 | FW23: 3.4 | FX23: 3.4 | FY23: 3.4 | FZ23: 3.4 | GA23: 3.4 | GB23: 3.4 | GC23: 3.4 | GD23: 3.4 | GE23: 3.4 | GF23: 3.7 | GG23: 3.7 | GH23: 3.4 | GI23: 3.4 | GJ23: 3.4 | GK23: 3.4 | GL23: 3.4 | GM23: 3.4 | GN23: 3.4 | GO23: 3.4 | GP23: 3.4 | GQ23: 3.4 | GR23: 3.4 | GS23: 3.4 | GT23: 3.4 | GU23: 3.4 | GV23: 3.4 | GW23: 3.4 | GX23: 3.4 | GY23: 3.3 | GZ23: 3.3 | HA23: 3.3 | HB23: 3.3 | HC23: 3.3 | HD23: 3.3 | HE23: 3.3 | HF23: 3.3 | HG23: 3.3 | HH23: 3.3 | HI23: 3.3 | HJ23: 3.3 | HK23: 3.3 | HL23: 3.3 | HM23: 3.3
A24: 141011 | D24: =(1.8*W*(H+D)+0.7*H*D)/1000000 -> 0.5847 | E24: =H*D/1000000*0.15 -> 0.01575 | G24: 3.1 | H24: 3.1 | I24: 3.1 | J24: 3.3 | K24: 3.3 | L24: 3.3 | M24: 3.3 | N24: 2.7 | O24: 2.7 | P24: 2.7 | Q24: 3 | R24: 3 | S24: 3 | T24: 3 | U24: 3.4 | V24: 3.4 | W24: 3.4 | X24: 3.4 | Y24: 3.4 | Z24: 3.4 | AA24: 3.4 | AB24: 3.4 | AC24: 2.9 | AD24: 2.9 | AE24: 2.9 | AF24: 2.9 | AG24: 2.9 | AH24: 2.9 | AI24: 2.9 | AJ24: 2.9 | AK24: 2.9 | AL24: 2.9 | AM24: 2.9 | AN24: 2.9 | AO24: 2.7 | AP24: 2.7 | AQ24: 2.7 | AR24: 2.7 | AS24: 2.7 | AT24: 3.1 | AU24: 3.1 | AV24: 3.6 | AW24: 3.6 | AX24: 3.6 | AY24: 3.6 | AZ24: 3.6 | BA24: 3.6 | BB24: 3.6 | BC24: 3.6 | BD24: 3.6 | BE24: 3.6 | BF24: 3.6 | BG24: 3.6 | BH24: 3.6 | BI24: 3.6 | BJ24: 3.6 | BK24: 3.6 | BL24: 3.6 | BM24: 3.6 | BN24: 3.6 | BO24: 3.6 | BP24: 3.6 | BQ24: 3.6 | BR24: 3.6 | BS24: 3.6 | BT24: 3.6 | BU24: 3.6 | BV24: 3.6 | BW24: 3.6 | BX24: 3.6 | BY24: 3.6 | BZ24: 3.6 | CA24: 3.6 | CB24: 3.6 | CC24: 3.6 | CD24: 3.6 | CE24: 3.6 | CF24: 3.6 | CG24: 3.6 | CH24: 3.6 | CI24: 3.6 | CJ24: 3.6 | CK24: 3.6 | CL24: 3.6 | CM24: 3.6 | CN24: 3.6 | CO24: 3.6 | CP24: 3.6 | CQ24: 3.6 | CR24: 3.6 | CS24: 3.6 | CT24: 3.6 | CU24: 3.6 | CV24: 3.6 | CW24: 3.6 | CX24: 3.6 | CY24: 3.6 | CZ24: 3.6 | DA24: 3.6 | DB24: 3.6 | DC24: 3.6 | DD24: 3.6 | DE24: 3.6 | DF24: 3.6 | DG24: 3.3 | DH24: 3.9 | DI24: 3.4 | DJ24: 3.7 | DK24: 3.8 | DL24: 3.6 | DM24: 3.8 | DN24: 3.6 | DO24: 4 | DP24: 3.6 | DQ24: 3.8 | DR24: 3.7 | DS24: 3.7 | DT24: 3.6 | DU24: 3.7 | DV24: 3.8 | DW24: 3.7 | DX24: 3.7 | DY24: 3.8 | DZ24: 3.9 | EA24: 3.7 | EB24: 3.7 | EC24: 3.8 | ED24: 3.7 | EE24: 3.3 | EF24: 3.3 | EG24: 3.3 | EH24: 3.3 | EI24: 3.3 | EJ24: 3.3 | EK24: 3.3 | EL24: 3.3 | EM24: 3.3 | EN24: 3.3 | EO24: 3.1 | EP24: 3.1 | EQ24: 3.1 | ER24: 3.1 | ES24: 3.1 | ET24: 3.1 | EU24: 3.1 | EV24: 3.1 | EW24: 3.1 | EX24: 3.1 | EY24: 3.1 | EZ24: 3.1 | FA24: 3.1 | FB24: 3.1 | FC24: 3.1 | FD24: 3.1 | FE24: 3.1 | FF24: 3.1 | FG24: 3.3 | FH24: 3.3 | FI24: 3 | FJ24: 3 | FK24: 3 | FL24: 3 | FM24: 3 | FN24: 3 | FO24: 3 | FP24: 3 | FQ24: 3.4 | FR24: 3.4 | FS24: 3 | FT24: 3 | FU24: 3 | FV24: 3 | FW24: 3 | FX24: 3 | FY24: 3 | FZ24: 3 | GA24: 3 | GB24: 3 | GC24: 3 | GD24: 3 | GE24: 3 | GF24: 3.4 | GG24: 3.4 | GH24: 3 | GI24: 3 | GJ24: 3 | GK24: 3 | GL24: 3 | GM24: 3 | GN24: 3 | GO24: 3 | GP24: 3 | GQ24: 3 | GR24: 3 | GS24: 3 | GT24: 3 | GU24: 3 | GV24: 3 | GW24: 3 | GX24: 3 | GY24: 3.3 | GZ24: 3.3 | HA24: 3.3 | HB24: 3.3 | HC24: 3.3 | HD24: 3.3 | HE24: 3.3 | HF24: 3.3 | HG24: 3.3 | HH24: 3.3 | HI24: 3.3 | HJ24: 3.3 | HK24: 3.3 | HL24: 3.3 | HM24: 3.3
A25: 141014 | D25: =(1.8*W*(H+D)+1.4*H*D)/1000000 -> 0.6582 | E25: =H*D/1000000 -> 0.105 | G25: 3.3 | H25: 3.3 | I25: 3.3 | J25: 3.5 | K25: 3.5 | L25: 3.5 | M25: 3.5 | N25: 2.9 | O25: 2.9 | P25: 2.9 | Q25: 3.2 | R25: 3.2 | S25: 3.2 | T25: 3.2 | U25: 3.4 | V25: 3.4 | W25: 3.4 | X25: 3.4 | Y25: 3.4 | Z25: 3.4 | AA25: 3.4 | AB25: 3.4 | AC25: 3.3 | AD25: 3.3 | AE25: 3.3 | AF25: 3.3 | AG25: 3.3 | AH25: 3.3 | AI25: 3.3 | AJ25: 3.3 | AK25: 3.3 | AL25: 3.3 | AM25: 3.3 | AN25: 3.3 | AO25: 2.7 | AP25: 2.7 | AQ25: 2.7 | AR25: 2.7 | AS25: 2.7 | AT25: 3.1 | AU25: 3.1 | AV25: 3.6 | AW25: 3.6 | AX25: 3.6 | AY25: 3.6 | AZ25: 3.6 | BA25: 3.6 | BB25: 3.6 | BC25: 3.6 | BD25: 3.6 | BE25: 3.6 | BF25: 3.6 | BG25: 3.6 | BH25: 3.6 | BI25: 3.6 | BJ25: 3.6 | BK25: 3.6 | BL25: 3.6 | BM25: 3.6 | BN25: 3.6 | BO25: 3.6 | BP25: 3.6 | BQ25: 3.6 | BR25: 3.6 | BS25: 3.6 | BT25: 3.6 | BU25: 3.6 | BV25: 3.6 | BW25: 3.6 | BX25: 3.6 | BY25: 3.6 | BZ25: 3.6 | CA25: 3.6 | CB25: 3.6 | CC25: 3.6 | CD25: 3.6 | CE25: 3.6 | CF25: 3.6 | CG25: 3.6 | CH25: 3.6 | CI25: 3.6 | CJ25: 3.6 | CK25: 3.6 | CL25: 3.6 | CM25: 3.6 | CN25: 3.6 | CO25: 3.6 | CP25: 3.6 | CQ25: 3.6 | CR25: 3.6 | CS25: 3.6 | CT25: 3.6 | CU25: 3.6 | CV25: 3.6 | CW25: 3.6 | CX25: 3.6 | CY25: 3.6 | CZ25: 3.6 | DA25: 3.6 | DB25: 3.6 | DC25: 3.6 | DD25: 3.6 | DE25: 3.6 | DF25: 3.6 | DG25: 3.7 | DH25: 3.5 | DI25: 3.6 | DJ25: 3.6 | DK25: 3.6 | DL25: 3.7 | DM25: 3.6 | DN25: 3.7 | DO25: 3.5 | DP25: 3.8 | DQ25: 3.6 | DR25: 3.6 | DS25: 3.7 | DT25: 3.6 | DU25: 3.6 | DV25: 3.6 | DW25: 3.4 | DX25: 3.7 | DY25: 3.5 | DZ25: 3.6 | EA25: 3.6 | EB25: 3.6 | EC25: 3.6 | ED25: 3.7 | EE25: 3.3 | EF25: 3.3 | EG25: 3.3 | EH25: 3.3 | EI25: 3.3 | EJ25: 3.3 | EK25: 3.3 | EL25: 3.3 | EM25: 3.3 | EN25: 3.3 | EO25: 3.3 | EP25: 3.3 | EQ25: 3.3 | ER25: 3.3 | ES25: 3.3 | ET25: 3.3 | EU25: 3.3 | EV25: 3.3 | EW25: 3.3 | EX25: 3.3 | EY25: 3.3 | EZ25: 3.3 | FA25: 3.3 | FB25: 3.3 | FC25: 3.3 | FD25: 3.3 | FE25: 3.3 | FF25: 3.3 | FG25: 3.5 | FH25: 3.5 | FI25: 3.2 | FJ25: 3.2 | FK25: 3.2 | FL25: 3.2 | FM25: 3.2 | FN25: 3.2 | FO25: 3.2 | FP25: 3.2 | FQ25: 3.7 | FR25: 3.7 | FS25: 3.2 | FT25: 3.2 | FU25: 3.2 | FV25: 3.2 | FW25: 3.2 | FX25: 3.2 | FY25: 3.2 | FZ25: 3.2 | GA25: 3.2 | GB25: 3.2 | GC25: 3.2 | GD25: 3.2 | GE25: 3.2 | GF25: 3.7 | GG25: 3.7 | GH25: 3.2 | GI25: 3.2 | GJ25: 3.2 | GK25: 3.2 | GL25: 3.2 | GM25: 3.2 | GN25: 3.2 | GO25: 3.2 | GP25: 3.2 | GQ25: 3.2 | GR25: 3.2 | GS25: 3.2 | GT25: 3.2 | GU25: 3.2 | GV25: 3.2 | GW25: 3.2 | GX25: 3.2 | GY25: 3.3 | GZ25: 3.3 | HA25: 3.3 | HB25: 3.3 | HC25: 3.3 | HD25: 3.3 | HE25: 3.3 | HF25: 3.3 | HG25: 3.3 | HH25: 3.3 | HI25: 3.3 | HJ25: 3.3 | HK25: 3.3 | HL25: 3.3 | HM25: 3.3
A26: 141020 | D26: =(1.8*W*(H+D)+0.7*H*D)/1000000 -> 0.5847 | E26: =H*D/1000000*0.15 -> 0.01575 | G26: 3.1 | H26: 3.1 | I26: 3.1 | J26: 3.3 | K26: 3.3 | L26: 3.3 | M26: 3.3 | N26: 2.7 | O26: 2.7 | P26: 2.7 | Q26: 3 | R26: 3 | S26: 3 | T26: 3 | U26: 3.4 | V26: 3.4 | W26: 3.4 | X26: 3.4 | Y26: 3.4 | Z26: 3.4 | AA26: 3.4 | AB26: 3.4 | AC26: 2.9 | AD26: 2.9 | AE26: 2.9 | AF26: 2.9 | AG26: 2.9 | AH26: 2.9 | AI26: 2.9 | AJ26: 2.9 | AK26: 2.9 | AL26: 2.9 | AM26: 2.9 | AN26: 2.9 | AO26: 2.7 | AP26: 2.7 | AQ26: 2.7 | AR26: 2.7 | AS26: 2.7 | AT26: 3.1 | AU26: 3.1 | AV26: 3.6 | AW26: 3.6 | AX26: 3.6 | AY26: 3.6 | AZ26: 3.6 | BA26: 3.6 | BB26: 3.6 | BC26: 3.6 | BD26: 3.6 | BE26: 3.6 | BF26: 3.6 | BG26: 3.6 | BH26: 3.6 | BI26: 3.6 | BJ26: 3.6 | BK26: 3.6 | BL26: 3.6 | BM26: 3.6 | BN26: 3.6 | BO26: 3.6 | BP26: 3.6 | BQ26: 3.6 | BR26: 3.6 | BS26: 3.6 | BT26: 3.6 | BU26: 3.6 | BV26: 3.6 | BW26: 3.6 | BX26: 3.6 | BY26: 3.6 | BZ26: 3.6 | CA26: 3.6 | CB26: 3.6 | CC26: 3.6 | CD26: 3.6 | CE26: 3.6 | CF26: 3.6 | CG26: 3.6 | CH26: 3.6 | CI26: 3.6 | CJ26: 3.6 | CK26: 3.6 | CL26: 3.6 | CM26: 3.6 | CN26: 3.6 | CO26: 3.6 | CP26: 3.6 | CQ26: 3.6 | CR26: 3.6 | CS26: 3.6 | CT26: 3.6 | CU26: 3.6 | CV26: 3.6 | CW26: 3.6 | CX26: 3.6 | CY26: 3.6 | CZ26: 3.6 | DA26: 3.6 | DB26: 3.6 | DC26: 3.6 | DD26: 3.6 | DE26: 3.6 | DF26: 3.6 | DG26: 3.3 | DH26: 3.9 | DI26: 3.4 | DJ26: 3.7 | DK26: 3.8 | DL26: 3.6 | DM26: 3.8 | DN26: 3.6 | DO26: 4 | DP26: 3.6 | DQ26: 3.8 | DR26: 3.7 | DS26: 3.7 | DT26: 3.6 | DU26: 3.7 | DV26: 3.8 | DW26: 3.7 | DX26: 3.7 | DY26: 3.8 | DZ26: 3.9 | EA26: 3.7 | EB26: 3.7 | EC26: 3.8 | ED26: 3.7 | EE26: 3.3 | EF26: 3.3 | EG26: 3.3 | EH26: 3.3 | EI26: 3.3 | EJ26: 3.3 | EK26: 3.3 | EL26: 3.3 | EM26: 3.3 | EN26: 3.3 | EO26: 3.1 | EP26: 3.1 | EQ26: 3.1 | ER26: 3.1 | ES26: 3.1 | ET26: 3.1 | EU26: 3.1 | EV26: 3.1 | EW26: 3.1 | EX26: 3.1 | EY26: 3.1 | EZ26: 3.1 | FA26: 3.1 | FB26: 3.1 | FC26: 3.1 | FD26: 3.1 | FE26: 3.1 | FF26: 3.1 | FG26: 3.3 | FH26: 3.3 | FI26: 3 | FJ26: 3 | FK26: 3 | FL26: 3 | FM26: 3 | FN26: 3 | FO26: 3 | FP26: 3 | FQ26: 3.4 | FR26: 3.4 | FS26: 3 | FT26: 3 | FU26: 3 | FV26: 3 | FW26: 3 | FX26: 3 | FY26: 3 | FZ26: 3 | GA26: 3 | GB26: 3 | GC26: 3 | GD26: 3 | GE26: 3 | GF26: 3.4 | GG26: 3.4 | GH26: 3 | GI26: 3 | GJ26: 3 | GK26: 3 | GL26: 3 | GM26: 3 | GN26: 3 | GO26: 3 | GP26: 3 | GQ26: 3 | GR26: 3 | GS26: 3 | GT26: 3 | GU26: 3 | GV26: 3 | GW26: 3 | GX26: 3 | GY26: 3.3 | GZ26: 3.3 | HA26: 3.3 | HB26: 3.3 | HC26: 3.3 | HD26: 3.3 | HE26: 3.3 | HF26: 3.3 | HG26: 3.3 | HH26: 3.3 | HI26: 3.3 | HJ26: 3.3 | HK26: 3.3 | HL26: 3.3 | HM26: 3.3
A27: 141012 | D27: =(W*D+1.8*H*W+0.7*H*D)/1000000 -> 0.5175 | E27: =H*D/1000000*0.1 -> 0.0105 | G27: 3.1 | H27: 3.1 | I27: 3.1 | J27: 3.3 | K27: 3.3 | L27: 3.3 | M27: 3.3 | N27: 2.7 | O27: 2.7 | P27: 2.7 | Q27: 3 | R27: 3 | S27: 3 | T27: 3 | U27: 3.4 | V27: 3.4 | W27: 3.4 | X27: 3.4 | Y27: 3.4 | Z27: 3.4 | AA27: 3.4 | AB27: 3.4 | AC27: 3.1 | AD27: 3.1 | AE27: 3.1 | AF27: 3.1 | AG27: 3.1 | AH27: 3.1 | AI27: 3.1 | AJ27: 3.1 | AK27: 3.1 | AL27: 3.1 | AM27: 3.1 | AN27: 3.1 | AO27: 2.7 | AP27: 2.7 | AQ27: 2.7 | AR27: 2.7 | AS27: 2.7 | AT27: 3.1 | AU27: 3.1 | AV27: 3.6 | AW27: 3.6 | AX27: 3.6 | AY27: 3.6 | AZ27: 3.6 | BA27: 3.6 | BB27: 3.6 | BC27: 3.6 | BD27: 3.6 | BE27: 3.6 | BF27: 3.6 | BG27: 3.6 | BH27: 3.6 | BI27: 3.6 | BJ27: 3.6 | BK27: 3.6 | BL27: 3.6 | BM27: 3.6 | BN27: 3.6 | BO27: 3.6 | BP27: 3.6 | BQ27: 3.6 | BR27: 3.6 | BS27: 3.6 | BT27: 3.6 | BU27: 3.6 | BV27: 3.6 | BW27: 3.6 | BX27: 3.6 | BY27: 3.6 | BZ27: 3.6 | CA27: 3.6 | CB27: 3.6 | CC27: 3.6 | CD27: 3.6 | CE27: 3.6 | CF27: 3.6 | CG27: 3.6 | CH27: 3.6 | CI27: 3.6 | CJ27: 3.6 | CK27: 3.6 | CL27: 3.6 | CM27: 3.6 | CN27: 3.6 | CO27: 3.6 | CP27: 3.6 | CQ27: 3.6 | CR27: 3.6 | CS27: 3.6 | CT27: 3.6 | CU27: 3.6 | CV27: 3.6 | CW27: 3.6 | CX27: 3.6 | CY27: 3.6 | CZ27: 3.6 | DA27: 3.6 | DB27: 3.6 | DC27: 3.6 | DD27: 3.6 | DE27: 3.6 | DF27: 3.6 | DG27: 3.3 | DH27: 3.9 | DI27: 3.4 | DJ27: 3.7 | DK27: 3.8 | DL27: 3.6 | DM27: 3.8 | DN27: 3.6 | DO27: 4 | DP27: 3.6 | DQ27: 3.8 | DR27: 3.7 | DS27: 3.7 | DT27: 3.6 | DU27: 3.7 | DV27: 3.8 | DW27: 3.7 | DX27: 3.7 | DY27: 3.8 | DZ27: 3.9 | EA27: 3.7 | EB27: 3.7 | EC27: 3.8 | ED27: 3.7 | EE27: 3.3 | EF27: 3.3 | EG27: 3.3 | EH27: 3.3 | EI27: 3.3 | EJ27: 3.3 | EK27: 3.3 | EL27: 3.3 | EM27: 3.3 | EN27: 3.3 | EO27: 3.1 | EP27: 3.1 | EQ27: 3.1 | ER27: 3.1 | ES27: 3.1 | ET27: 3.1 | EU27: 3.1 | EV27: 3.1 | EW27: 3.1 | EX27: 3.1 | EY27: 3.1 | EZ27: 3.1 | FA27: 3.1 | FB27: 3.1 | FC27: 3.1 | FD27: 3.1 | FE27: 3.1 | FF27: 3.1 | FG27: 3.3 | FH27: 3.3 | FI27: 3.2 | FJ27: 3.2 | FK27: 3.2 | FL27: 3.2 | FM27: 3.2 | FN27: 3.2 | FO27: 3.2 | FP27: 3.2 | FQ27: 3.5 | FR27: 3.5 | FS27: 3.2 | FT27: 3.2 | FU27: 3.2 | FV27: 3.2 | FW27: 3.2 | FX27: 3.2 | FY27: 3.2 | FZ27: 3.2 | GA27: 3.2 | GB27: 3.2 | GC27: 3.2 | GD27: 3.2 | GE27: 3.2 | GF27: 3.5 | GG27: 3.5 | GH27: 3.2 | GI27: 3.2 | GJ27: 3.2 | GK27: 3.2 | GL27: 3.2 | GM27: 3.2 | GN27: 3.2 | GO27: 3.2 | GP27: 3.2 | GQ27: 3.2 | GR27: 3.2 | GS27: 3.2 | GT27: 3.2 | GU27: 3.2 | GV27: 3.2 | GW27: 3.2 | GX27: 3.2 | GY27: 3.3 | GZ27: 3.3 | HA27: 3.3 | HB27: 3.3 | HC27: 3.3 | HD27: 3.3 | HE27: 3.3 | HF27: 3.3 | HG27: 3.3 | HH27: 3.3 | HI27: 3.3 | HJ27: 3.3 | HK27: 3.3 | HL27: 3.3 | HM27: 3.3
A28: 131006 | D28: =(1.8*W*D+1.4*H*(W+D))/1000000 -> 0.5782 | E28: =H*D/1000000 -> 0.105 | G28: 3.3 | H28: 3.3 | I28: 3.3 | J28: 3.5 | K28: 3.5 | L28: 3.5 | M28: 3.5 | N28: 2.9 | O28: 2.9 | P28: 2.9 | Q28: 3.2 | R28: 3.2 | S28: 3.2 | T28: 3.2 | U28: 3.4 | V28: 3.4 | W28: 3.4 | X28: 3.4 | Y28: 3.4 | Z28: 3.4 | AA28: 3.4 | AB28: 3.4 | AC28: 3.1 | AD28: 3.1 | AE28: 3.1 | AF28: 3.1 | AG28: 3.1 | AH28: 3.1 | AI28: 3.1 | AJ28: 3.1 | AK28: 3.1 | AL28: 3.1 | AM28: 3.1 | AN28: 3.1 | AO28: 2.7 | AP28: 2.7 | AQ28: 2.7 | AR28: 2.7 | AS28: 2.7 | AT28: 3.1 | AU28: 3.1 | AV28: 3.6 | AW28: 3.6 | AX28: 3.6 | AY28: 3.6 | AZ28: 3.6 | BA28: 3.6 | BB28: 3.6 | BC28: 3.6 | BD28: 3.6 | BE28: 3.6 | BF28: 3.6 | BG28: 3.6 | BH28: 3.6 | BI28: 3.6 | BJ28: 3.6 | BK28: 3.6 | BL28: 3.6 | BM28: 3.6 | BN28: 3.6 | BO28: 3.6 | BP28: 3.6 | BQ28: 3.6 | BR28: 3.6 | BS28: 3.6 | BT28: 3.6 | BU28: 3.6 | BV28: 3.6 | BW28: 3.6 | BX28: 3.6 | BY28: 3.6 | BZ28: 3.6 | CA28: 3.6 | CB28: 3.6 | CC28: 3.6 | CD28: 3.6 | CE28: 3.6 | CF28: 3.6 | CG28: 3.6 | CH28: 3.6 | CI28: 3.6 | CJ28: 3.6 | CK28: 3.6 | CL28: 3.6 | CM28: 3.6 | CN28: 3.6 | CO28: 3.6 | CP28: 3.6 | CQ28: 3.6 | CR28: 3.6 | CS28: 3.6 | CT28: 3.6 | CU28: 3.6 | CV28: 3.6 | CW28: 3.6 | CX28: 3.6 | CY28: 3.6 | CZ28: 3.6 | DA28: 3.6 | DB28: 3.6 | DC28: 3.6 | DD28: 3.6 | DE28: 3.6 | DF28: 3.6 | DG28: 3.7 | DH28: 4 | DI28: 3.7 | DJ28: 3.8 | DK28: 3.6 | DL28: 3.7 | DM28: 3.7 | DN28: 3.8 | DO28: 3.6 | DP28: 3.8 | DQ28: 3.8 | DR28: 3.6 | DS28: 3.8 | DT28: 3.7 | DU28: 3.6 | DV28: 3.7 | DW28: 3.8 | DX28: 3.7 | DY28: 3.7 | DZ28: 3.8 | EA28: 3.6 | EB28: 3.6 | EC28: 3.7 | ED28: 3.7 | EE28: 3.3 | EF28: 3.3 | EG28: 3.3 | EH28: 3.3 | EI28: 3.3 | EJ28: 3.3 | EK28: 3.3 | EL28: 3.3 | EM28: 3.3 | EN28: 3.3 | EO28: 3.3 | EP28: 3.3 | EQ28: 3.3 | ER28: 3.3 | ES28: 3.3 | ET28: 3.3 | EU28: 3.3 | EV28: 3.3 | EW28: 3.3 | EX28: 3.3 | EY28: 3.3 | EZ28: 3.3 | FA28: 3.3 | FB28: 3.3 | FC28: 3.3 | FD28: 3.3 | FE28: 3.3 | FF28: 3.3 | FG28: 3.5 | FH28: 3.5 | FI28: 3.2 | FJ28: 3.2 | FK28: 3.2 | FL28: 3.2 | FM28: 3.2 | FN28: 3.2 | FO28: 3.2 | FP28: 3.2 | FQ28: 3.7 | FR28: 3.7 | FS28: 3.2 | FT28: 3.2 | FU28: 3.2 | FV28: 3.2 | FW28: 3.2 | FX28: 3.2 | FY28: 3.2 | FZ28: 3.2 | GA28: 3.2 | GB28: 3.2 | GC28: 3.2 | GD28: 3.2 | GE28: 3.2 | GF28: 3.7 | GG28: 3.7 | GH28: 3.2 | GI28: 3.2 | GJ28: 3.2 | GK28: 3.2 | GL28: 3.2 | GM28: 3.2 | GN28: 3.2 | GO28: 3.2 | GP28: 3.2 | GQ28: 3.2 | GR28: 3.2 | GS28: 3.2 | GT28: 3.2 | GU28: 3.2 | GV28: 3.2 | GW28: 3.2 | GX28: 3.2 | GY28: 3.3 | GZ28: 3.3 | HA28: 3.3 | HB28: 3.3 | HC28: 3.3 | HD28: 3.3 | HE28: 3.3 | HF28: 3.3 | HG28: 3.3 | HH28: 3.3 | HI28: 3.3 | HJ28: 3.3 | HK28: 3.3 | HL28: 3.3 | HM28: 3.3
A29: 131010 | D29: =(1.4*W*(H+D)+1.4*H*D)/1000000 -> 0.5446 | E29: =H*D/1000000 -> 0.105 | G29: 3.3 | H29: 3.3 | I29: 3.3 | J29: 3.5 | K29: 3.5 | L29: 3.5 | M29: 3.5 | N29: 2.9 | O29: 2.9 | P29: 2.9 | Q29: 3.2 | R29: 3.2 | S29: 3.2 | T29: 3.2 | U29: 3.4 | V29: 3.4 | W29: 3.4 | X29: 3.4 | Y29: 3.4 | Z29: 3.4 | AA29: 3.4 | AB29: 3.4 | AC29: 3.3 | AD29: 3.3 | AE29: 3.3 | AF29: 3.3 | AG29: 3.3 | AH29: 3.3 | AI29: 3.3 | AJ29: 3.3 | AK29: 3.3 | AL29: 3.3 | AM29: 3.3 | AN29: 3.3 | AO29: 2.7 | AP29: 2.7 | AQ29: 2.7 | AR29: 2.7 | AS29: 2.7 | AT29: 3.1 | AU29: 3.1 | AV29: 3.6 | AW29: 3.6 | AX29: 3.6 | AY29: 3.6 | AZ29: 3.6 | BA29: 3.6 | BB29: 3.6 | BC29: 3.6 | BD29: 3.6 | BE29: 3.6 | BF29: 3.6 | BG29: 3.6 | BH29: 3.6 | BI29: 3.6 | BJ29: 3.6 | BK29: 3.6 | BL29: 3.6 | BM29: 3.6 | BN29: 3.6 | BO29: 3.6 | BP29: 3.6 | BQ29: 3.6 | BR29: 3.6 | BS29: 3.6 | BT29: 3.6 | BU29: 3.6 | BV29: 3.6 | BW29: 3.6 | BX29: 3.6 | BY29: 3.6 | BZ29: 3.6 | CA29: 3.6 | CB29: 3.6 | CC29: 3.6 | CD29: 3.6 | CE29: 3.6 | CF29: 3.6 | CG29: 3.6 | CH29: 3.6 | CI29: 3.6 | CJ29: 3.6 | CK29: 3.6 | CL29: 3.6 | CM29: 3.6 | CN29: 3.6 | CO29: 3.6 | CP29: 3.6 | CQ29: 3.6 | CR29: 3.6 | CS29: 3.6 | CT29: 3.6 | CU29: 3.6 | CV29: 3.6 | CW29: 3.6 | CX29: 3.6 | CY29: 3.6 | CZ29: 3.6 | DA29: 3.6 | DB29: 3.6 | DC29: 3.6 | DD29: 3.6 | DE29: 3.6 | DF29: 3.6 | DG29: 3.9 | DH29: 3.5 | DI29: 3.7 | DJ29: 3.8 | DK29: 3.6 | DL29: 3.8 | DM29: 3.7 | DN29: 3.7 | DO29: 3.5 | DP29: 3.8 | DQ29: 3.6 | DR29: 3.7 | DS29: 3.8 | DT29: 3.6 | DU29: 3.7 | DV29: 3.8 | DW29: 3.5 | DX29: 3.7 | DY29: 3.7 | DZ29: 3.7 | EA29: 3.7 | EB29: 3.8 | EC29: 3.8 | ED29: 3.8 | EE29: 3.3 | EF29: 3.3 | EG29: 3.3 | EH29: 3.3 | EI29: 3.3 | EJ29: 3.3 | EK29: 3.3 | EL29: 3.3 | EM29: 3.3 | EN29: 3.3 | EO29: 3.3 | EP29: 3.3 | EQ29: 3.3 | ER29: 3.3 | ES29: 3.3 | ET29: 3.3 | EU29: 3.3 | EV29: 3.3 | EW29: 3.3 | EX29: 3.3 | EY29: 3.3 | EZ29: 3.3 | FA29: 3.3 | FB29: 3.3 | FC29: 3.3 | FD29: 3.3 | FE29: 3.3 | FF29: 3.3 | FG29: 3.5 | FH29: 3.5 | FI29: 3.4 | FJ29: 3.4 | FK29: 3.4 | FL29: 3.4 | FM29: 3.4 | FN29: 3.4 | FO29: 3.4 | FP29: 3.4 | FQ29: 3.7 | FR29: 3.7 | FS29: 3.4 | FT29: 3.4 | FU29: 3.4 | FV29: 3.4 | FW29: 3.4 | FX29: 3.4 | FY29: 3.4 | FZ29: 3.4 | GA29: 3.4 | GB29: 3.4 | GC29: 3.4 | GD29: 3.4 | GE29: 3.4 | GF29: 3.7 | GG29: 3.7 | GH29: 3.4 | GI29: 3.4 | GJ29: 3.4 | GK29: 3.4 | GL29: 3.4 | GM29: 3.4 | GN29: 3.4 | GO29: 3.4 | GP29: 3.4 | GQ29: 3.4 | GR29: 3.4 | GS29: 3.4 | GT29: 3.4 | GU29: 3.4 | GV29: 3.4 | GW29: 3.4 | GX29: 3.4 | GY29: 3.3 | GZ29: 3.3 | HA29: 3.3 | HB29: 3.3 | HC29: 3.3 | HD29: 3.3 | HE29: 3.3 | HF29: 3.3 | HG29: 3.3 | HH29: 3.3 | HI29: 3.3 | HJ29: 3.3 | HK29: 3.3 | HL29: 3.3 | HM29: 3.3
A30: 131013 | D30: =(W*D+1.4*H*(W+D))/1000000 -> 0.511 | E30: =H*D/1000000 -> 0.105 | G30: 3.3 | H30: 3.3 | I30: 3.3 | J30: 3.5 | K30: 3.5 | L30: 3.5 | M30: 3.5 | N30: 2.9 | O30: 2.9 | P30: 2.9 | Q30: 3.2 | R30: 3.2 | S30: 3.2 | T30: 3.2 | U30: 3.4 | V30: 3.4 | W30: 3.4 | X30: 3.4 | Y30: 3.4 | Z30: 3.4 | AA30: 3.4 | AB30: 3.4 | AC30: 3.3 | AD30: 3.3 | AE30: 3.3 | AF30: 3.3 | AG30: 3.3 | AH30: 3.3 | AI30: 3.3 | AJ30: 3.3 | AK30: 3.3 | AL30: 3.3 | AM30: 3.3 | AN30: 3.3 | AO30: 2.7 | AP30: 2.7 | AQ30: 2.7 | AR30: 2.7 | AS30: 2.7 | AT30: 3.1 | AU30: 3.1 | AV30: 3.6 | AW30: 3.6 | AX30: 3.6 | AY30: 3.6 | AZ30: 3.6 | BA30: 3.6 | BB30: 3.6 | BC30: 3.6 | BD30: 3.6 | BE30: 3.6 | BF30: 3.6 | BG30: 3.6 | BH30: 3.6 | BI30: 3.6 | BJ30: 3.6 | BK30: 3.6 | BL30: 3.6 | BM30: 3.6 | BN30: 3.6 | BO30: 3.6 | BP30: 3.6 | BQ30: 3.6 | BR30: 3.6 | BS30: 3.6 | BT30: 3.6 | BU30: 3.6 | BV30: 3.6 | BW30: 3.6 | BX30: 3.6 | BY30: 3.6 | BZ30: 3.6 | CA30: 3.6 | CB30: 3.6 | CC30: 3.6 | CD30: 3.6 | CE30: 3.6 | CF30: 3.6 | CG30: 3.6 | CH30: 3.6 | CI30: 3.6 | CJ30: 3.6 | CK30: 3.6 | CL30: 3.6 | CM30: 3.6 | CN30: 3.6 | CO30: 3.6 | CP30: 3.6 | CQ30: 3.6 | CR30: 3.6 | CS30: 3.6 | CT30: 3.6 | CU30: 3.6 | CV30: 3.6 | CW30: 3.6 | CX30: 3.6 | CY30: 3.6 | CZ30: 3.6 | DA30: 3.6 | DB30: 3.6 | DC30: 3.6 | DD30: 3.6 | DE30: 3.6 | DF30: 3.6 | DG30: 3.8 | DH30: 3.7 | DI30: 3.6 | DJ30: 3.6 | DK30: 3.8 | DL30: 3.8 | DM30: 3.6 | DN30: 3.7 | DO30: 3.8 | DP30: 4 | DQ30: 3.6 | DR30: 3.7 | DS30: 3.7 | DT30: 3.7 | DU30: 3.8 | DV30: 3.6 | DW30: 3.4 | DX30: 3.7 | DY30: 3.5 | DZ30: 3.6 | EA30: 3.8 | EB30: 3.6 | EC30: 3.6 | ED30: 3.7 | EE30: 3.3 | EF30: 3.3 | EG30: 3.3 | EH30: 3.3 | EI30: 3.3 | EJ30: 3.3 | EK30: 3.3 | EL30: 3.3 | EM30: 3.3 | EN30: 3.3 | EO30: 3.3 | EP30: 3.3 | EQ30: 3.3 | ER30: 3.3 | ES30: 3.3 | ET30: 3.3 | EU30: 3.3 | EV30: 3.3 | EW30: 3.3 | EX30: 3.3 | EY30: 3.3 | EZ30: 3.3 | FA30: 3.3 | FB30: 3.3 | FC30: 3.3 | FD30: 3.3 | FE30: 3.3 | FF30: 3.3 | FG30: 3.5 | FH30: 3.5 | FI30: 3.5 | FJ30: 3.5 | FK30: 3.5 | FL30: 3.5 | FM30: 3.5 | FN30: 3.5 | FO30: 3.5 | FP30: 3.5 | FQ30: 3.6 | FR30: 3.6 | FS30: 3.5 | FT30: 3.5 | FU30: 3.5 | FV30: 3.5 | FW30: 3.5 | FX30: 3.5 | FY30: 3.5 | FZ30: 3.5 | GA30: 3.5 | GB30: 3.5 | GC30: 3.5 | GD30: 3.5 | GE30: 3.5 | GF30: 3.6 | GG30: 3.6 | GH30: 3.5 | GI30: 3.5 | GJ30: 3.5 | GK30: 3.5 | GL30: 3.5 | GM30: 3.5 | GN30: 3.5 | GO30: 3.5 | GP30: 3.5 | GQ30: 3.5 | GR30: 3.5 | GS30: 3.5 | GT30: 3.5 | GU30: 3.5 | GV30: 3.5 | GW30: 3.5 | GX30: 3.5 | GY30: 3.3 | GZ30: 3.3 | HA30: 3.3 | HB30: 3.3 | HC30: 3.3 | HD30: 3.3 | HE30: 3.3 | HF30: 3.3 | HG30: 3.3 | HH30: 3.3 | HI30: 3.3 | HJ30: 3.3 | HK30: 3.3 | HL30: 3.3 | HM30: 3.3
A31: 131011 | D31: =(1.8*W*D+1.4*H*W+0.7*H*D)/1000000 -> 0.5047 | E31: =H*D/1000000*0.15 -> 0.01575 | G31: 3.1 | H31: 3.1 | I31: 3.1 | J31: 3.3 | K31: 3.3 | L31: 3.3 | M31: 3.3 | N31: 2.7 | O31: 2.7 | P31: 2.7 | Q31: 3 | R31: 3 | S31: 3 | T31: 3 | U31: 3.4 | V31: 3.4 | W31: 3.4 | X31: 3.4 | Y31: 3.4 | Z31: 3.4 | AA31: 3.4 | AB31: 3.4 | AC31: 2.9 | AD31: 2.9 | AE31: 2.9 | AF31: 2.9 | AG31: 2.9 | AH31: 2.9 | AI31: 2.9 | AJ31: 2.9 | AK31: 2.9 | AL31: 2.9 | AM31: 2.9 | AN31: 2.9 | AO31: 2.7 | AP31: 2.7 | AQ31: 2.7 | AR31: 2.7 | AS31: 2.7 | AT31: 3.1 | AU31: 3.1 | AV31: 3.6 | AW31: 3.6 | AX31: 3.6 | AY31: 3.6 | AZ31: 3.6 | BA31: 3.6 | BB31: 3.6 | BC31: 3.6 | BD31: 3.6 | BE31: 3.6 | BF31: 3.6 | BG31: 3.6 | BH31: 3.6 | BI31: 3.6 | BJ31: 3.6 | BK31: 3.6 | BL31: 3.6 | BM31: 3.6 | BN31: 3.6 | BO31: 3.6 | BP31: 3.6 | BQ31: 3.6 | BR31: 3.6 | BS31: 3.6 | BT31: 3.6 | BU31: 3.6 | BV31: 3.6 | BW31: 3.6 | BX31: 3.6 | BY31: 3.6 | BZ31: 3.6 | CA31: 3.6 | CB31: 3.6 | CC31: 3.6 | CD31: 3.6 | CE31: 3.6 | CF31: 3.6 | CG31: 3.6 | CH31: 3.6 | CI31: 3.6 | CJ31: 3.6 | CK31: 3.6 | CL31: 3.6 | CM31: 3.6 | CN31: 3.6 | CO31: 3.6 | CP31: 3.6 | CQ31: 3.6 | CR31: 3.6 | CS31: 3.6 | CT31: 3.6 | CU31: 3.6 | CV31: 3.6 | CW31: 3.6 | CX31: 3.6 | CY31: 3.6 | CZ31: 3.6 | DA31: 3.6 | DB31: 3.6 | DC31: 3.6 | DD31: 3.6 | DE31: 3.6 | DF31: 3.6 | DG31: 3.3 | DH31: 3.9 | DI31: 3.4 | DJ31: 3.7 | DK31: 3.8 | DL31: 3.6 | DM31: 3.8 | DN31: 3.6 | DO31: 4 | DP31: 3.6 | DQ31: 3.8 | DR31: 3.7 | DS31: 3.7 | DT31: 3.6 | DU31: 3.7 | DV31: 3.8 | DW31: 3.7 | DX31: 3.7 | DY31: 3.8 | DZ31: 3.9 | EA31: 3.7 | EB31: 3.7 | EC31: 3.8 | ED31: 3.7 | EE31: 3.3 | EF31: 3.3 | EG31: 3.3 | EH31: 3.3 | EI31: 3.3 | EJ31: 3.3 | EK31: 3.3 | EL31: 3.3 | EM31: 3.3 | EN31: 3.3 | EO31: 3.1 | EP31: 3.1 | EQ31: 3.1 | ER31: 3.1 | ES31: 3.1 | ET31: 3.1 | EU31: 3.1 | EV31: 3.1 | EW31: 3.1 | EX31: 3.1 | EY31: 3.1 | EZ31: 3.1 | FA31: 3.1 | FB31: 3.1 | FC31: 3.1 | FD31: 3.1 | FE31: 3.1 | FF31: 3.1 | FG31: 3.3 | FH31: 3.3 | FI31: 3 | FJ31: 3 | FK31: 3 | FL31: 3 | FM31: 3 | FN31: 3 | FO31: 3 | FP31: 3 | FQ31: 3.4 | FR31: 3.4 | FS31: 3 | FT31: 3 | FU31: 3 | FV31: 3 | FW31: 3 | FX31: 3 | FY31: 3 | FZ31: 3 | GA31: 3 | GB31: 3 | GC31: 3 | GD31: 3 | GE31: 3 | GF31: 3.4 | GG31: 3.4 | GH31: 3 | GI31: 3 | GJ31: 3 | GK31: 3 | GL31: 3 | GM31: 3 | GN31: 3 | GO31: 3 | GP31: 3 | GQ31: 3 | GR31: 3 | GS31: 3 | GT31: 3 | GU31: 3 | GV31: 3 | GW31: 3 | GX31: 3 | GY31: 3.3 | GZ31: 3.3 | HA31: 3.3 | HB31: 3.3 | HC31: 3.3 | HD31: 3.3 | HE31: 3.3 | HF31: 3.3 | HG31: 3.3 | HH31: 3.3 | HI31: 3.3 | HJ31: 3.3 | HK31: 3.3 | HL31: 3.3 | HM31: 3.3
A32: 131014 | D32: =(1.8*W*D+1.4*H*(W+D))/1000000 -> 0.5782 | E32: =H*D/1000000 -> 0.105 | G32: 3.3 | H32: 3.3 | I32: 3.3 | J32: 3.5 | K32: 3.5 | L32: 3.5 | M32: 3.5 | N32: 2.9 | O32: 2.9 | P32: 2.9 | Q32: 3.2 | R32: 3.2 | S32: 3.2 | T32: 3.2 | U32: 3.4 | V32: 3.4 | W32: 3.4 | X32: 3.4 | Y32: 3.4 | Z32: 3.4 | AA32: 3.4 | AB32: 3.4 | AC32: 3.1 | AD32: 3.1 | AE32: 3.1 | AF32: 3.1 | AG32: 3.1 | AH32: 3.1 | AI32: 3.1 | AJ32: 3.1 | AK32: 3.1 | AL32: 3.1 | AM32: 3.1 | AN32: 3.1 | AO32: 2.7 | AP32: 2.7 | AQ32: 2.7 | AR32: 2.7 | AS32: 2.7 | AT32: 3.1 | AU32: 3.1 | AV32: 3.6 | AW32: 3.6 | AX32: 3.6 | AY32: 3.6 | AZ32: 3.6 | BA32: 3.6 | BB32: 3.6 | BC32: 3.6 | BD32: 3.6 | BE32: 3.6 | BF32: 3.6 | BG32: 3.6 | BH32: 3.6 | BI32: 3.6 | BJ32: 3.6 | BK32: 3.6 | BL32: 3.6 | BM32: 3.6 | BN32: 3.6 | BO32: 3.6 | BP32: 3.6 | BQ32: 3.6 | BR32: 3.6 | BS32: 3.6 | BT32: 3.6 | BU32: 3.6 | BV32: 3.6 | BW32: 3.6 | BX32: 3.6 | BY32: 3.6 | BZ32: 3.6 | CA32: 3.6 | CB32: 3.6 | CC32: 3.6 | CD32: 3.6 | CE32: 3.6 | CF32: 3.6 | CG32: 3.6 | CH32: 3.6 | CI32: 3.6 | CJ32: 3.6 | CK32: 3.6 | CL32: 3.6 | CM32: 3.6 | CN32: 3.6 | CO32: 3.6 | CP32: 3.6 | CQ32: 3.6 | CR32: 3.6 | CS32: 3.6 | CT32: 3.6 | CU32: 3.6 | CV32: 3.6 | CW32: 3.6 | CX32: 3.6 | CY32: 3.6 | CZ32: 3.6 | DA32: 3.6 | DB32: 3.6 | DC32: 3.6 | DD32: 3.6 | DE32: 3.6 | DF32: 3.6 | DG32: 3.7 | DH32: 3.5 | DI32: 3.6 | DJ32: 3.6 | DK32: 3.6 | DL32: 3.7 | DM32: 3.6 | DN32: 3.7 | DO32: 3.5 | DP32: 3.8 | DQ32: 3.6 | DR32: 3.6 | DS32: 3.7 | DT32: 3.6 | DU32: 3.6 | DV32: 3.6 | DW32: 3.4 | DX32: 3.7 | DY32: 3.5 | DZ32: 3.6 | EA32: 3.6 | EB32: 3.6 | EC32: 3.6 | ED32: 3.7 | EE32: 3.3 | EF32: 3.3 | EG32: 3.3 | EH32: 3.3 | EI32: 3.3 | EJ32: 3.3 | EK32: 3.3 | EL32: 3.3 | EM32: 3.3 | EN32: 3.3 | EO32: 3.3 | EP32: 3.3 | EQ32: 3.3 | ER32: 3.3 | ES32: 3.3 | ET32: 3.3 | EU32: 3.3 | EV32: 3.3 | EW32: 3.3 | EX32: 3.3 | EY32: 3.3 | EZ32: 3.3 | FA32: 3.3 | FB32: 3.3 | FC32: 3.3 | FD32: 3.3 | FE32: 3.3 | FF32: 3.3 | FG32: 3.5 | FH32: 3.5 | FI32: 3.2 | FJ32: 3.2 | FK32: 3.2 | FL32: 3.2 | FM32: 3.2 | FN32: 3.2 | FO32: 3.2 | FP32: 3.2 | FQ32: 3.7 | FR32: 3.7 | FS32: 3.2 | FT32: 3.2 | FU32: 3.2 | FV32: 3.2 | FW32: 3.2 | FX32: 3.2 | FY32: 3.2 | FZ32: 3.2 | GA32: 3.2 | GB32: 3.2 | GC32: 3.2 | GD32: 3.2 | GE32: 3.2 | GF32: 3.7 | GG32: 3.7 | GH32: 3.2 | GI32: 3.2 | GJ32: 3.2 | GK32: 3.2 | GL32: 3.2 | GM32: 3.2 | GN32: 3.2 | GO32: 3.2 | GP32: 3.2 | GQ32: 3.2 | GR32: 3.2 | GS32: 3.2 | GT32: 3.2 | GU32: 3.2 | GV32: 3.2 | GW32: 3.2 | GX32: 3.2 | GY32: 3.3 | GZ32: 3.3 | HA32: 3.3 | HB32: 3.3 | HC32: 3.3 | HD32: 3.3 | HE32: 3.3 | HF32: 3.3 | HG32: 3.3 | HH32: 3.3 | HI32: 3.3 | HJ32: 3.3 | HK32: 3.3 | HL32: 3.3 | HM32: 3.3
A33: 131020 | D33: =(1.8*W*D+1.4*H*W+0.7*H*D)/1000000 -> 0.5047 | E33: =H*D/1000000*0.15 -> 0.01575 | G33: 3.1 | H33: 3.1 | I33: 3.1 | J33: 3.3 | K33: 3.3 | L33: 3.3 | M33: 3.3 | N33: 2.7 | O33: 2.7 | P33: 2.7 | Q33: 3 | R33: 3 | S33: 3 | T33: 3 | U33: 3.4 | V33: 3.4 | W33: 3.4 | X33: 3.4 | Y33: 3.4 | Z33: 3.4 | AA33: 3.4 | AB33: 3.4 | AC33: 2.9 | AD33: 2.9 | AE33: 2.9 | AF33: 2.9 | AG33: 2.9 | AH33: 2.9 | AI33: 2.9 | AJ33: 2.9 | AK33: 2.9 | AL33: 2.9 | AM33: 2.9 | AN33: 2.9 | AO33: 2.7 | AP33: 2.7 | AQ33: 2.7 | AR33: 2.7 | AS33: 2.7 | AT33: 3.1 | AU33: 3.1 | AV33: 3.6 | AW33: 3.6 | AX33: 3.6 | AY33: 3.6 | AZ33: 3.6 | BA33: 3.6 | BB33: 3.6 | BC33: 3.6 | BD33: 3.6 | BE33: 3.6 | BF33: 3.6 | BG33: 3.6 | BH33: 3.6 | BI33: 3.6 | BJ33: 3.6 | BK33: 3.6 | BL33: 3.6 | BM33: 3.6 | BN33: 3.6 | BO33: 3.6 | BP33: 3.6 | BQ33: 3.6 | BR33: 3.6 | BS33: 3.6 | BT33: 3.6 | BU33: 3.6 | BV33: 3.6 | BW33: 3.6 | BX33: 3.6 | BY33: 3.6 | BZ33: 3.6 | CA33: 3.6 | CB33: 3.6 | CC33: 3.6 | CD33: 3.6 | CE33: 3.6 | CF33: 3.6 | CG33: 3.6 | CH33: 3.6 | CI33: 3.6 | CJ33: 3.6 | CK33: 3.6 | CL33: 3.6 | CM33: 3.6 | CN33: 3.6 | CO33: 3.6 | CP33: 3.6 | CQ33: 3.6 | CR33: 3.6 | CS33: 3.6 | CT33: 3.6 | CU33: 3.6 | CV33: 3.6 | CW33: 3.6 | CX33: 3.6 | CY33: 3.6 | CZ33: 3.6 | DA33: 3.6 | DB33: 3.6 | DC33: 3.6 | DD33: 3.6 | DE33: 3.6 | DF33: 3.6 | DG33: 3.3 | DH33: 3.9 | DI33: 3.4 | DJ33: 3.7 | DK33: 3.8 | DL33: 3.6 | DM33: 3.8 | DN33: 3.6 | DO33: 4 | DP33: 3.6 | DQ33: 3.8 | DR33: 3.7 | DS33: 3.7 | DT33: 3.6 | DU33: 3.7 | DV33: 3.8 | DW33: 3.7 | DX33: 3.7 | DY33: 3.8 | DZ33: 3.9 | EA33: 3.7 | EB33: 3.7 | EC33: 3.8 | ED33: 3.7 | EE33: 3.3 | EF33: 3.3 | EG33: 3.3 | EH33: 3.3 | EI33: 3.3 | EJ33: 3.3 | EK33: 3.3 | EL33: 3.3 | EM33: 3.3 | EN33: 3.3 | EO33: 3.1 | EP33: 3.1 | EQ33: 3.1 | ER33: 3.1 | ES33: 3.1 | ET33: 3.1 | EU33: 3.1 | EV33: 3.1 | EW33: 3.1 | EX33: 3.1 | EY33: 3.1 | EZ33: 3.1 | FA33: 3.1 | FB33: 3.1 | FC33: 3.1 | FD33: 3.1 | FE33: 3.1 | FF33: 3.1 | FG33: 3.3 | FH33: 3.3 | FI33: 3 | FJ33: 3 | FK33: 3 | FL33: 3 | FM33: 3 | FN33: 3 | FO33: 3 | FP33: 3 | FQ33: 3.4 | FR33: 3.4 | FS33: 3 | FT33: 3 | FU33: 3 | FV33: 3 | FW33: 3 | FX33: 3 | FY33: 3 | FZ33: 3 | GA33: 3 | GB33: 3 | GC33: 3 | GD33: 3 | GE33: 3 | GF33: 3.4 | GG33: 3.4 | GH33: 3 | GI33: 3 | GJ33: 3 | GK33: 3 | GL33: 3 | GM33: 3 | GN33: 3 | GO33: 3 | GP33: 3 | GQ33: 3 | GR33: 3 | GS33: 3 | GT33: 3 | GU33: 3 | GV33: 3 | GW33: 3 | GX33: 3 | GY33: 3.3 | GZ33: 3.3 | HA33: 3.3 | HB33: 3.3 | HC33: 3.3 | HD33: 3.3 | HE33: 3.3 | HF33: 3.3 | HG33: 3.3 | HH33: 3.3 | HI33: 3.3 | HJ33: 3.3 | HK33: 3.3 | HL33: 3.3 | HM33: 3.3
A34: 131012 | D34: =(0.7*H*D+W*D+1.4*H*W)/1000000 -> 0.4375 | E34: =H*D/1000000*0.1 -> 0.0105 | G34: 3.1 | H34: 3.1 | I34: 3.1 | J34: 3.3 | K34: 3.3 | L34: 3.3 | M34: 3.3 | N34: 2.7 | O34: 2.7 | P34: 2.7 | Q34: 3 | R34: 3 | S34: 3 | T34: 3 | U34: 3.4 | V34: 3.4 | W34: 3.4 | X34: 3.4 | Y34: 3.4 | Z34: 3.4 | AA34: 3.4 | AB34: 3.4 | AC34: 3.1 | AD34: 3.1 | AE34: 3.1 | AF34: 3.1 | AG34: 3.1 | AH34: 3.1 | AI34: 3.1 | AJ34: 3.1 | AK34: 3.1 | AL34: 3.1 | AM34: 3.1 | AN34: 3.1 | AO34: 2.7 | AP34: 2.7 | AQ34: 2.7 | AR34: 2.7 | AS34: 2.7 | AT34: 3.1 | AU34: 3.1 | AV34: 3.6 | AW34: 3.6 | AX34: 3.6 | AY34: 3.6 | AZ34: 3.6 | BA34: 3.6 | BB34: 3.6 | BC34: 3.6 | BD34: 3.6 | BE34: 3.6 | BF34: 3.6 | BG34: 3.6 | BH34: 3.6 | BI34: 3.6 | BJ34: 3.6 | BK34: 3.6 | BL34: 3.6 | BM34: 3.6 | BN34: 3.6 | BO34: 3.6 | BP34: 3.6 | BQ34: 3.6 | BR34: 3.6 | BS34: 3.6 | BT34: 3.6 | BU34: 3.6 | BV34: 3.6 | BW34: 3.6 | BX34: 3.6 | BY34: 3.6 | BZ34: 3.6 | CA34: 3.6 | CB34: 3.6 | CC34: 3.6 | CD34: 3.6 | CE34: 3.6 | CF34: 3.6 | CG34: 3.6 | CH34: 3.6 | CI34: 3.6 | CJ34: 3.6 | CK34: 3.6 | CL34: 3.6 | CM34: 3.6 | CN34: 3.6 | CO34: 3.6 | CP34: 3.6 | CQ34: 3.6 | CR34: 3.6 | CS34: 3.6 | CT34: 3.6 | CU34: 3.6 | CV34: 3.6 | CW34: 3.6 | CX34: 3.6 | CY34: 3.6 | CZ34: 3.6 | DA34: 3.6 | DB34: 3.6 | DC34: 3.6 | DD34: 3.6 | DE34: 3.6 | DF34: 3.6 | DG34: 3.3 | DH34: 3.9 | DI34: 3.4 | DJ34: 3.7 | DK34: 3.8 | DL34: 3.6 | DM34: 3.8 | DN34: 3.6 | DO34: 4 | DP34: 3.6 | DQ34: 3.8 | DR34: 3.7 | DS34: 3.7 | DT34: 3.6 | DU34: 3.7 | DV34: 3.8 | DW34: 3.7 | DX34: 3.7 | DY34: 3.8 | DZ34: 3.9 | EA34: 3.7 | EB34: 3.7 | EC34: 3.8 | ED34: 3.7 | EE34: 3.3 | EF34: 3.3 | EG34: 3.3 | EH34: 3.3 | EI34: 3.3 | EJ34: 3.3 | EK34: 3.3 | EL34: 3.3 | EM34: 3.3 | EN34: 3.3 | EO34: 3.1 | EP34: 3.1 | EQ34: 3.1 | ER34: 3.1 | ES34: 3.1 | ET34: 3.1 | EU34: 3.1 | EV34: 3.1 | EW34: 3.1 | EX34: 3.1 | EY34: 3.1 | EZ34: 3.1 | FA34: 3.1 | FB34: 3.1 | FC34: 3.1 | FD34: 3.1 | FE34: 3.1 | FF34: 3.1 | FG34: 3.3 | FH34: 3.3 | FI34: 3.2 | FJ34: 3.2 | FK34: 3.2 | FL34: 3.2 | FM34: 3.2 | FN34: 3.2 | FO34: 3.2 | FP34: 3.2 | FQ34: 3.5 | FR34: 3.5 | FS34: 3.2 | FT34: 3.2 | FU34: 3.2 | FV34: 3.2 | FW34: 3.2 | FX34: 3.2 | FY34: 3.2 | FZ34: 3.2 | GA34: 3.2 | GB34: 3.2 | GC34: 3.2 | GD34: 3.2 | GE34: 3.2 | GF34: 3.5 | GG34: 3.5 | GH34: 3.2 | GI34: 3.2 | GJ34: 3.2 | GK34: 3.2 | GL34: 3.2 | GM34: 3.2 | GN34: 3.2 | GO34: 3.2 | GP34: 3.2 | GQ34: 3.2 | GR34: 3.2 | GS34: 3.2 | GT34: 3.2 | GU34: 3.2 | GV34: 3.2 | GW34: 3.2 | GX34: 3.2 | GY34: 3.3 | GZ34: 3.3 | HA34: 3.3 | HB34: 3.3 | HC34: 3.3 | HD34: 3.3 | HE34: 3.3 | HF34: 3.3 | HG34: 3.3 | HH34: 3.3 | HI34: 3.3 | HJ34: 3.3 | HK34: 3.3 | HL34: 3.3 | HM34: 3.3
B38: =Sheet1!$D$13 -> Indoor
A39: Indoor | I39: =IF(Sheet1!$D$14="Asia",0,1) -> 1
A40: Outdoor
A41: Direct Sunlight | G41: Max power | I41: city | J41: Latitude | K41: Latitude | L41: Peak | M41: Absorption | N41: Final radiation
G42: =Sheet1!$I$6*$E$2*35 -> 76.9923 | I42: =VLOOKUP(Sheet1!$D$14,$A$45:$B$49,2,FALSE) -> Helsinki | J42: =VLOOKUP($I$42,INDIRECT(ADDRESS(50,MATCH(Sheet1!$D$14,$G$48:$O$48,0)+6)&":"&ADDRESS(107,MATCH(Sheet1!$D$14,$G$48:$O$48,0)+7)),2,FALSE) -> 50° ~ 66.5° | K42: 0° ~ 23.5° | L42: 967.4167 | M42: 0.44 | N42: =VLOOKUP($J$42,$K$42:$L$46,2)*$M$42*VLOOKUP($D$2,$A$7:$E$34,5,FALSE) -> 29.44885944 | O42: =IF($B$38="Direct Sunlight",ROUND($N$42,0),"-") -> -
K43: 23.5° ~ 40° | L43: 959.007
K44: 40° ~ 50° | L44: 899.7521
A45: Africa | B45: Abuja | K45: 50° ~ 66.5° | L45: 796.7765
A46: Americas | B46: Asuncion | K46: 66.5° ~ 90° | L46: 601.6597
A47: Asia | B47: Taipei
A48: Europe | B48: Helsinki | G48: Asia | I48: Europe | K48: Africa | M48: Oceania | O48: Americas
A49: Oceania | B49: Apia | G49: city | H49: latitude | I49: city | J49: latitude | K49: city | L49: latitude | M49: city | N49: latitude | O49: city | P49: latitude | S49: ARCA | T49: CAB PX | U49: CAB P | V49: EK | W49: CAB PN | X49: CAB SL | Y49: TBSL | Z49: SLN | AA49: ARCA JIG (US) | AB49: CAB PC/ABS | AC49: QUICK | AD49: SOLID PC/ABS | AE49: SM | AF49: STCP/STC
B50: Single | C50: Single | D50: Single | E50: Single | G50: Abu Dhabi | H50: 23.5° ~ 40° | I50: Aalborg | J50: 50° ~ 66.5° | K50: Abuja | L50: 0° ~ 23.5° | M50: Apia | N50: 0° ~ 23.5° | O50: Asuncion | P50: 23.5° ~ 40° | R50: ARCA | S50: 300x200x150 | T50: 500x500x320 | U50: 315x215x170 | V50: 190x190x130 | W50: 300x250x140 | X50: 300x200x150 | Y50: 150x150x80 | Z50: 320x220x180 | AA50: 152x152x102 | AB50: 150x150x110 | AC50: 300x200x170 | AD50: 188x188x130 | AE50: 188x278x130 | AF50: 1275(420)x265x250
A51: Wall mounting | B51: Single | C51: Single | D51: Single | E51: Single | G51: Amman | H51: 23.5° ~ 40° | I51: Aarhus | J51: 50° ~ 66.5° | K51: Accra | L51: 0° ~ 23.5° | M51: Canberra | N51: 23.5° ~ 40° | O51: Basseterre | P51: 0° ~ 23.5° | R51: CAB PN | S51: 400x300x150 | T51: 500x750x320 | U51: 415x315x170 | V51: 190x190x180 | W51: 400x300x200 | X51: 200x300x150 | Y51: 150x200x80 | Z51: 320x220x260 | AA51: 203x152x127 | AB51: 250x150x110 | AC51: 300x300x170 | AD51: 188x188x180 | AE51: 188x278x180 | AF51: 1435(580)x265x250
A52: Pole mounting | B52: End of Row | C52: End of Row | D52: Intermediated | G52: Ankara | H52: 23.5° ~ 40° | I52: Aberdeen | J52: 50° ~ 66.5° | K52: Addis Ababa | L52: 0° ~ 23.5° | M52: Funafuti | N52: 0° ~ 23.5° | O52: Belmopan | P52: 0° ~ 23.5° | R52: CAB SL | S52: 400x300x210 | T52: 750x500x320 | U52: 515x415x230 | V52: 280x190x130 | W52: 400x400x200 | X52: 300x300x150 | Y52: 200x200x80 | Z52: 320x320x180 | AA52: 203x203x102 | AB52: 350x250x150 | AC52: 400x300x170 | AD52: 278x188x130 | AE52: 278x278x130 | AF52: 1695(840)x265x250
B53: Intermediated | C53: Intermediated | D53: Surrounded | G53: Ashgabat | H53: 23.5° ~ 40° | I53: Amsterdam | J53: 50° ~ 66.5° | K53: Algiers | L53: 23.5° ~ 40° | M53: Honiara | N53: 0° ~ 23.5° | O53: Bogotá | P53: 0° ~ 23.5° | R53: CAB P | S53: 500x400x210 | T53: 750x750x320 | U53: 615x415x230 | V53: 280x190x180 | W53: 500x400x200 | X53: 300x300x210 | Y53: 250x200x80 | Z53: 320x320x260 | AA53: 254x203x102 | AB53: 300x200x180 | AC53: 400x300x230 | AD53: 278x188x180 | AE53: 278x278x180 | AF53: 1275(420)x400x250
A54: Vertical | B54: Surrounded | C54: Top covered | G54: Astana | H54: 50° ~ 66.5° | I54: Andorra la Vella | J54: 40° ~ 50° | K54: Antananarivo | L54: 0° ~ 23.5° | M54: Koror | N54: 0° ~ 23.5° | O54: Brasília | P54: 0° ~ 23.5° | R54: CAB PX | S54: 600x400x210 | T54: 750x1000x320 | U54: 735x535x270 | V54: 380x190x130 | W54: 600x400x230 | X54: 300x300x250 | Y54: 250x250x80 | Z54: 440x320x180 | AA54: 254x203x152 | AB54: 300x300x180 | AC54: 400x400x170 | AD54: 378x188x130 | AE54: 278x378x130 | AF54: 1435(580)x400x250
A55: Horizontal | C55: Bottom covered | G55: Baghdad | H55: 23.5° ~ 40° | I55: Athens | J55: 23.5° ~ 40° | K55: Asmara | L55: 0° ~ 23.5° | M55: Majuro | N55: 0° ~ 23.5° | O55: Bridgetown | P55: 0° ~ 23.5° | R55: EK | S55: 700x500x300 | T55: 750x1250x320 | U55: 835x635x300 | V55: 380x190x180 | W55: 600x500x230 | X55: 400x300x150 | Y55: 300x250x80 | Z55: 440x320x260 | AA55: 254x254x152 | AB55: 400x300x180 | AC55: 600x300x170 | AD55: 378x188x180 | AE55: 278x378x180 | AF55: 1695(840)x400x250
C56: Top & Bottom covered | G56: Baku | H56: 23.5° ~ 40° | I56: Bamako | J56: 0° ~ 23.5° | K56: Bamako | L56: 0° ~ 23.5° | M56: Nukuʻalofa | N56: 0° ~ 23.5° | O56: Buenos Aires | P56: 23.5° ~ 40° | R56: TBSL | S56: 800x600x300 | T56: 1000x500x320 | U56: 1035x835x300 | V56: 280x280x130 | W56: 800x300x230 | X56: 400x300x210 | Y56: 300x300x80 | Z56: 640x320x180 | AA56: 305x254x152 | AB56: 400x300x160 | AC56: 600x400x210 | AD56: 278x278x130 | AF56: 1730(880)x400x320
A57: None | C57: Surrounded | G57: Bandar Seri Begawan | H57: 0° ~ 23.5° | I57: Berlin | J57: 50° ~ 66.5° | K57: Bangui | L57: 0° ~ 23.5° | M57: Palikir | N57: 0° ~ 23.5° | O57: Caracas | P57: 0° ~ 23.5° | T57: 1000x750x320 | V57: 280x280x180 | W57: 800x600x300 | X57: 400x300x250 | Y57: 300x400x80 | Z57: 640x320x260 | AA57: 356x305x178 | AB57: 450x350x160 | AC57: 600x400x270 | AD57: 278x278x180 | AF57: 1275(420)x530x250
A58: Yes | G58: Bangkok | H58: 0° ~ 23.5° | I58: Bern | J58: 40° ~ 50° | K58: Banjul | L58: 0° ~ 23.5° | M58: Port Moresby | N58: 0° ~ 23.5° | O58: Castries | P58: 0° ~ 23.5° | T58: 1000x1000x320 | V58: 380x280x130 | X58: 500x300x210 | Y58: 150x150x100 | Z58: 640x440x180 | AA58: 406x356x203 | AB58: 500x400x200 | AD58: 378x278x130 | AF58: 1435(580)x530x250
C59: =VLOOKUP($A$4,$B$60:$D$73,3) -> Single | G59: Beijing | H59: 23.5° ~ 40° | I59: Bratislava | J59: 40° ~ 50° | K59: Bissau | L59: 0° ~ 23.5° | M59: Port Vila | N59: 0° ~ 23.5° | O59: Chicago | P59: 40° ~ 50° | T59: 1000x1250x320 | V59: 380x280x180 | X59: 300x400x150 | Y59: 150x200x100 | Z59: 640x440x260 | AA59: 457x406x254 | AB59: 600x400x220 | AD59: 378x278x180 | AF59: 1695(840)x530x250
B60: ARCA | C60: 500x400x210 | D60: =$C$50 -> Single | G60: Beirut | H60: 23.5° ~ 40° | I60: Brussels | J60: 40° ~ 50° | K60: Brazzaville | L60: 0° ~ 23.5° | M60: Suva | N60: 0° ~ 23.5° | O60: Dallas | P60: 23.5° ~ 40° | T60: 1250x750x320 | V60: 380x280x230 | X60: 300x400x210 | Y60: 200x200x100 | AD60: 558x278x130 | AF60: 1730(880)x530x320
B61: CAB PN | C61: 300x250x140 | D61: Single | G61: Bishkek | H61: 40° ~ 50° | I61: Bucharest | J61: 40° ~ 50° | K61: Bujumbura | L61: 0° ~ 23.5° | M61: Tarawa | N61: 0° ~ 23.5° | O61: Georgetown | P61: 0° ~ 23.5° | T61: 1250x1000x320 | V61: 560x280x130 | X61: 300x400x250 | Y61: 250x200x100 | AD61: 558x378x180 | AF61: 1290(420)x660x250
B62: CAB SL | C62: 300x200x150 | D62: Single | G62: Chongqing | H62: 23.5° ~ 40° | I62: Budapest | J62: 40° ~ 50° | K62: Cairo | L62: 23.5° ~ 40° | M62: Wellington | N62: 40° ~ 50° | O62: Guatemala | P62: 0° ~ 23.5° | V62: 560x280x180 | X62: 400x400x150 | Y62: 250x250x100 | AD62: 757x559x250 | AF62: 1420(580)x660x250
B63: CAB P | C63: 315x215x170 | D63: Single | G63: Colombo | H63: 0° ~ 23.5° | I63: Chișinău | J63: 40° ~ 50° | K63: Cape Town | L63: 23.5° ~ 40° | M63: Yaren District | N63: 0° ~ 23.5° | O63: Havana | P63: 23.5° ~ 40° | V63: 560x380x180 | X63: 400x400x210 | Y63: 300x250x100 | AF63: 1730(840)x660x250
B64: CAB PX | C64: 500x500x320 | D64: Single | G64: Damascus | H64: 23.5° ~ 40° | I64: Copenhagen | J64: 50° ~ 66.5° | K64: Conakry | L64: 0° ~ 23.5° | O64: Houston | P64: 23.5° ~ 40° | V64: 760x560x250 | X64: 400x400x250 | Y64: 300x300x100 | AF64: 1730(880)x660x320
B65: EK | C65: 190x190x130 | D65: Single | G65: Dhaka | H65: 0° ~ 23.5° | I65: Dublin | J65: 50° ~ 66.5° | K65: Dakar | L65: 0° ~ 23.5° | O65: Kingston | P65: 0° ~ 23.5° | X65: 400x400x300 | Y65: 300x400x100
B66: TBSL | C66: 150x150x80 | D66: =$C$50 -> Single | G66: Dili | H66: 0° ~ 23.5° | I66: Edinburgh | J66: 50° ~ 66.5° | K66: Djibouti | L66: 0° ~ 23.5° | O66: Kingstown | P66: 0° ~ 23.5° | X66: 500x400x210 | Y66: 150x150x120
B67: SLN | C67: 320x220x180 | D67: =$C$50 -> Single | G67: Doha | H67: 23.5° ~ 40° | I67: Glasgow | J67: 50° ~ 66.5° | K67: Dodoma | L67: 0° ~ 23.5° | O67: Lima | P67: 0° ~ 23.5° | X67: 500x400x250 | Y67: 150x200x120
B68: ARCA JIG (US) | C68: 203x203x102 | D68: =$C$50 -> Single | G68: Dushanbe | H68: 23.5° ~ 40° | I68: Hamburg | J68: 50° ~ 66.5° | K68: Freetown | L68: 0° ~ 23.5° | O68: Managua | P68: 0° ~ 23.5° | X68: 500x400x300 | Y68: 200x200x120
B69: CAB PC/ABS | C69: 150x150x110 | D69: Single | G69: Guangzhou | H69: 0° ~ 23.5° | I69: Helsinki | J69: 50° ~ 66.5° | K69: Gaborone | L69: 23.5° ~ 40° | O69: Mexico City | P69: 0° ~ 23.5° | X69: 600x400x210 | Y69: 250x200x120
B70: QUICK | C70: 600x400x210 | D70: Single | G70: Hanoi | H70: 0° ~ 23.5° | I70: Kiev | J70: 40° ~ 50° | K70: Harare | L70: 0° ~ 23.5° | O70: Montevide | P70: 23.5° ~ 40° | X70: 600x400x250 | Y70: 250x250x120
B71: SOLID PC/ABS | C71: 188x188x130 | D71: Single | G71: Islamabad | H71: 23.5° ~ 40° | I71: Kiruna | J71: 66.5° ~ 90° | K71: Johannesburg | L71: 23.5° ~ 40° | O71: Nassau | P71: 23.5° ~ 40° | X71: 600x400x300 | Y71: 300x250x120
B72: SM | C72: 188x278x130 | D72: Single | G72: Jakarta | H72: 0° ~ 23.5° | I72: Lisbon | J72: 23.5° ~ 40° | K72: Kampala | L72: 0° ~ 23.5° | O72: New York City | P72: 40° ~ 50° | X72: 800x400x210 | Y72: 300x300x120
B73: STCP/STC | C73: 1275(420)x265x250 | D73: =$C$50 -> Single | G73: Jerusalem | H73: 23.5° ~ 40° | I73: Ljubljana | J73: 40° ~ 50° | K73: Khartoum | L73: 0° ~ 23.5° | O73: Ottawa | P73: 40° ~ 50° | X73: 800x400x250 | Y73: 300x400x120
G74: Kabul | H74: 23.5° ~ 40° | I74: London | J74: 50° ~ 66.5° | K74: Kigali | L74: 0° ~ 23.5° | O74: Panama City | P74: 0° ~ 23.5° | X74: 800x400x300
G75: Kaohsiung | H75: 0° ~ 23.5° | I75: Luxembourg | J75: 40° ~ 50° | K75: Kinshasa | L75: 0° ~ 23.5° | O75: Paramaribo | P75: 0° ~ 23.5° | X75: 1000x400x250
G76: Kathmandu | H76: 23.5° ~ 40° | I76: Madrid | J76: 23.5° ~ 40° | K76: Libreville | L76: 0° ~ 23.5° | O76: Port of Spain | P76: 0° ~ 23.5° | X76: 1000x400x300
G77: Kolkata | H77: 0° ~ 23.5° | I77: Malmö | J77: 50° ~ 66.5° | K77: Lilongwe | L77: 0° ~ 23.5° | O77: Port-au-Prince | P77: 0° ~ 23.5° | X77: 500x500x210
G78: Kuala Lumpur | H78: 0° ~ 23.5° | I78: Marseille | J78: 40° ~ 50° | K78: Lome | L78: 0° ~ 23.5° | O78: Quito | P78: 0° ~ 23.5° | X78: 500x500x300
G79: Kuwait | H79: 23.5° ~ 40° | I79: Milan | J79: 40° ~ 50° | K79: Luanda | L79: 0° ~ 23.5° | O79: Roseau | P79: 0° ~ 23.5° | X79: 600x500x210
G80: Malé | H80: 0° ~ 23.5° | I80: Minsk | J80: 50° ~ 66.5° | K80: Lusaka | L80: 0° ~ 23.5° | O80: San Jose | P80: 23.5° ~ 40° | X80: 600x500x250
G81: Manama | H81: 23.5° ~ 40° | I81: Monaco | J81: 40° ~ 50° | K81: Malabo | L81: 0° ~ 23.5° | O81: San Salvador | P81: 0° ~ 23.5° | X81: 600x500x300
G82: Manila | H82: 0° ~ 23.5° | I82: Moscow | J82: 50° ~ 66.5° | K82: Maputo | L82: 23.5° ~ 40° | O82: Santiago | P82: 23.5° ~ 40° | X82: 700x500x250
G83: Mumbai | H83: 0° ~ 23.5° | I83: Munich | J83: 40° ~ 50° | K83: Maseru | L83: 23.5° ~ 40° | O83: Santo Domingo | P83: 0° ~ 23.5° | X83: 400x600x210
G84: Muscat | H84: 0° ~ 23.5° | I84: Novosibirsk | J84: 50° ~ 66.5° | K84: Mbabane | L84: 23.5° ~ 40° | O84: St. George's | P84: 0° ~ 23.5° | X84: 400x600x250
G85: New Delhi | H85: 23.5° ~ 40° | I85: Oslo | J85: 50° ~ 66.5° | K85: Mogadishu | L85: 0° ~ 23.5° | O85: St. John's | P85: 40° ~ 50° | X85: 400x600x300
G86: Nicosia | H86: 23.5° ~ 40° | I86: Paris | J86: 40° ~ 50° | K86: Monrovia | L86: 0° ~ 23.5° | O86: Sucre | P86: 0° ~ 23.5° | X86: 500x600x300
G87: Osaka | H87: 23.5° ~ 40° | I87: Prague | J87: 40° ~ 50° | K87: Moroni, Comoros | L87: 0° ~ 23.5° | O87: Tegucigalpa | P87: 0° ~ 23.5° | X87: 600x600x210
G88: Phnom Penh | H88: 0° ~ 23.5° | I88: Reykjavík | J88: 50° ~ 66.5° | K88: Nairobi | L88: 0° ~ 23.5° | O88: Washington | P88: 23.5° ~ 40° | X88: 600x600x250
G89: Pyongyang | H89: 23.5° ~ 40° | I89: Riga | J89: 50° ~ 66.5° | K89: N'Djamena | L89: 0° ~ 23.5° | X89: 600x600x300
G90: Riyadh | H90: 23.5° ~ 40° | I90: Rome | J90: 40° ~ 50° | K90: Niamey | L90: 0° ~ 23.5° | X90: 600x600x400
G91: Sana'a | H91: 0° ~ 23.5° | I91: Rovaniemi | J91: 50° ~ 66.5° | K91: Nouakchott | L91: 0° ~ 23.5° | X91: 800x600x210
G92: Sapporo | H92: 40° ~ 50° | I92: Saint Petersburg | J92: 50° ~ 66.5° | K92: Ouagadougou | L92: 0° ~ 23.5° | X92: 800x600x250
G93: Seoul | H93: 23.5° ~ 40° | I93: San Marino | J93: 40° ~ 50° | K93: Port Louis | L93: 0° ~ 23.5° | X93: 800x600x300
G94: Shanghai | H94: 23.5° ~ 40° | I94: Sarajevo | J94: 40° ~ 50° | K94: Porto Novo | L94: 0° ~ 23.5° | X94: 800x600x400
G95: Singapore | H95: 0° ~ 23.5° | I95: Skopje | J95: 40° ~ 50° | K95: Praia | L95: 0° ~ 23.5° | X95: 1000x600x250
G96: Taichung | H96: 23.5° ~ 40° | I96: Sofia | J96: 40° ~ 50° | K96: Rabat | L96: 23.5° ~ 40° | X96: 1000x600x300
G97: Taipei | H97: 0° ~ 23.5° | I97: Stockholm | J97: 50° ~ 66.5° | K97: São Tomé | L97: 0° ~ 23.5° | X97: 1000x600x400
G98: Tashkent | H98: 40° ~ 50° | I98: Tallinn | J98: 50° ~ 66.5° | K98: Tripoli | L98: 23.5° ~ 40° | X98: 1200x600x250
G99: Tbilisi | H99: 40° ~ 50° | I99: Tirana | J99: 40° ~ 50° | K99: Tunis | L99: 23.5° ~ 40° | X99: 1200x600x300
G100: Tehran | H100: 23.5° ~ 40° | I100: Umeå | J100: 50° ~ 66.5° | K100: Victoria | L100: 0° ~ 23.5° | X100: 1200x600x400
G101: Thimphu | H101: 23.5° ~ 40° | I101: Vaduz | J101: 40° ~ 50° | K101: Windhoek | L101: 0° ~ 23.5° | X101: 600x800x250
G102: Tokyo | H102: 23.5° ~ 40° | I102: Vatican City | J102: 40° ~ 50° | K102: Yamoussoukro | L102: 0° ~ 23.5° | X102: 600x800x300
G103: Vientiane | H103: 0° ~ 23.5° | I103: Vienna | J103: 40° ~ 50° | K103: Yaoundé | L103: 0° ~ 23.5° | X103: 800x800x210
G104: Yangon | H104: 0° ~ 23.5° | I104: Vilnius | J104: 50° ~ 66.5° | X104: 800x800x250
G105: Yerevan | H105: 23.5° ~ 40° | I105: Warsaw | J105: 50° ~ 66.5° | X105: 800x800x300
G106: Yokohama | H106: 23.5° ~ 40° | I106: Yekaterinburg | J106: 50° ~ 66.5° | X106: 800x800x400
I107: Zagreb | J107: 40° ~ 50° | X107: 1000x800x250
X108: 1000x800x300
X109: 1000x800x400
X110: 1200x800x250
X111: 1200x800x300
X112: 1200x800x400
